{"text_format":"1","workbook":"xlsx","n_sheets":8,"sheets":["Accueil","Base","Vendeurs","Produits","TCD","Feuil1","Plan","Param"],"not_rendered":{"charts":0,"images":3,"macros":0,"external_links":0,"defined_names":8,"comments":0,"pivot_tables":4},"unopened":[],"bounds":{"document_bytes":16777216,"sheet_cells":100000,"rows_first":2000,"rows_last":500,"rows_between":2000,"halvings":0,"cell_chars":16384,"cell_head_chars":4096},"cells_cut":0,"cells_raw":0,"read":"whole","date_system":"1900"}

{"sheet":"Accueil","index":0,"n_rows":2,"n_cols":2,"rows_kept":2,"cut":false,"hidden":false,"merged":[[1,1,1,7]]}
[]
[null,"Les quatres grands DANGERS des TCD"]

{"sheet":"Base","index":1,"n_rows":267,"n_cols":9,"rows_kept":267,"cut":false,"hidden":false,"merged":[]}
["Clef","Date","No Vendeur","Nom","Région","Code produit","Nom du produit","Chiffre d'affaires","Unités vendues"]
[1,"2016-01-01",1,{"$f":"INDEX(TableVendeurs[Nom],MATCH(TableVentes[[#This Row],[No Vendeur]],TableVendeurs[No],0))","v":"M. Lebon"},{"$f":"INDEX(TableVendeurs[Région],MATCH(TableVentes[[#This Row],[No Vendeur]],TableVendeurs[No],0))","v":"Région Nord"},2,{"$f":"INDEX(TableProduits[Description Produit],MATCH(TableVentes[[#This Row],[Code produit]],TableProduits[Code produit],0))","v":"Produit C"},3132,157]
[2,"2016-01-01",1,{"$f":"INDEX(TableVendeurs[Nom],MATCH(TableVentes[[#This Row],[No Vendeur]],TableVendeurs[No],0))","v":"M. Lebon"},{"$f":"INDEX(TableVendeurs[Région],MATCH(TableVentes[[#This Row],[No Vendeur]],TableVendeurs[No],0))","v":"Région Nord"},3,{"$f":"INDEX(TableProduits[Description Produit],MATCH(TableVentes[[#This Row],[Code produit]],TableProduits[Code produit],0))","v":"Produit A"},776.1,78]
[3,"2016-01-01",2,{"$f":"INDEX(TableVendeurs[Nom],MATCH(TableVentes[[#This Row],[No Vendeur]],TableVendeurs[No],0))","v":"M. Dupuis"},{"$f":"INDEX(TableVendeurs[Région],MATCH(TableVentes[[#This Row],[No Vendeur]],TableVendeurs[No],0))","v":"Région Ouest"},3,{"$f":"INDEX(TableProduits[Description Produit],MATCH(TableVentes[[#This Row],[Code produit]],TableProduits[Code produit],0))","v":"Produit A"},1213.9000000000001]
[4,"2016-01-01",3,{"$f":"INDEX(TableVendeurs[Nom],MATCH(TableVentes[[#This Row],[No Vendeur]],TableVendeurs[No],0))","v":"M. Desmol"},{"$f":"INDEX(TableVendeurs[Région],MATCH(TableVentes[[#This Row],[No Vendeur]],TableVendeurs[No],0))","v":"Région Centre"},3,{"$f":"INDEX(TableProduits[Description Produit],MATCH(TableVentes[[#This Row],[Code produit]],TableProduits[Code produit],0))","v":"Produit A"},955.2,96]
[5,"2016-01-01",4,{"$f":"INDEX(TableVendeurs[Nom],MATCH(TableVentes[[#This Row],[No Vendeur]],TableVendeurs[No],0))","v":"Mme Bourguignon"},{"$f":"INDEX(TableVendeurs[Région],MATCH(TableVentes[[#This Row],[No Vendeur]],TableVendeurs[No],0))","v":"Région Est"},3,{"$f":"INDEX(TableProduits[Description Produit],MATCH(TableVentes[[#This Row],[Code produit]],TableProduits[Code produit],0))","v":"Produit A"},1273.5999999999999,128]
[6,"2016-01-01",5,{"$f":"INDEX(TableVendeurs[Nom],MATCH(TableVentes[[#This Row],[No Vendeur]],TableVendeurs[No],0))","v":"Internet"},{"$f":"INDEX(TableVendeurs[Région],MATCH(TableVentes[[#This Row],[No Vendeur]],TableVendeurs[No],0))","v":"France"},3,{"$f":"INDEX(TableProduits[Description Produit],MATCH(TableVentes[[#This Row],[Code produit]],TableProduits[Code produit],0))","v":"Produit A"},547.25,55]
[12,"2016-02-01",1,{"$f":"INDEX(TableVendeurs[Nom],MATCH(TableVentes[[#This Row],[No Vendeur]],TableVendeurs[No],0))","v":"M. Lebon"},{"$f":"INDEX(TableVendeurs[Région],MATCH(TableVentes[[#This Row],[No Vendeur]],TableVendeurs[No],0))","v":"Région Nord"},2,{"$f":"INDEX(TableProduits[Description Produit],MATCH(TableVentes[[#This Row],[Code produit]],TableProduits[Code produit],0))","v":"Produit C"},3531.15,177]
[13,"2016-02-01",2,{"$f":"INDEX(TableVendeurs[Nom],MATCH(TableVentes[[#This Row],[No Vendeur]],TableVendeurs[No],0))","v":"M. Dupuis"},{"$f":"INDEX(TableVendeurs[Région],MATCH(TableVentes[[#This Row],[No Vendeur]],TableVendeurs[No],0))","v":"Région Ouest"},2,{"$f":"INDEX(TableProduits[Description Produit],MATCH(TableVentes[[#This Row],[Code produit]],TableProduits[Code produit],0))","v":"Produit C"},5067.3,254]
[14,"2016-02-01",3,{"$f":"INDEX(TableVendeurs[Nom],MATCH(TableVentes[[#This Row],[No Vendeur]],TableVendeurs[No],0))","v":"M. Desmol"},{"$f":"INDEX(TableVendeurs[Région],MATCH(TableVentes[[#This Row],[No Vendeur]],TableVendeurs[No],0))","v":"Région Centre"},2,{"$f":"INDEX(TableProduits[Description Produit],MATCH(TableVentes[[#This Row],[Code produit]],TableProduits[Code produit],0))","v":"Produit C"},4468.8,224]
[15,"2016-02-01",4,{"$f":"INDEX(TableVendeurs[Nom],MATCH(TableVentes[[#This Row],[No Vendeur]],TableVendeurs[No],0))","v":"Mme Bourguignon"},{"$f":"INDEX(TableVendeurs[Région],MATCH(TableVentes[[#This Row],[No Vendeur]],TableVendeurs[No],0))","v":"Région Est"},2,{"$f":"INDEX(TableProduits[Description Produit],MATCH(TableVentes[[#This Row],[Code produit]],TableProduits[Code produit],0))","v":"Produit C"},5386.5,270]
[16,"2016-02-01",5,{"$f":"INDEX(TableVendeurs[Nom],MATCH(TableVentes[[#This Row],[No Vendeur]],TableVendeurs[No],0))","v":"Internet"},{"$f":"INDEX(TableVendeurs[Région],MATCH(TableVentes[[#This Row],[No Vendeur]],TableVendeurs[No],0))","v":"France"},2,{"$f":"INDEX(TableProduits[Description Produit],MATCH(TableVentes[[#This Row],[Code produit]],TableProduits[Code produit],0))","v":"Produit C"},2174.5500000000002,109]
[17,"2016-02-01",1,{"$f":"INDEX(TableVendeurs[Nom],MATCH(TableVentes[[#This Row],[No Vendeur]],TableVendeurs[No],0))","v":"M. Lebon"},{"$f":"INDEX(TableVendeurs[Région],MATCH(TableVentes[[#This Row],[No Vendeur]],TableVendeurs[No],0))","v":"Région Nord"},3,{"$f":"INDEX(TableProduits[Description Produit],MATCH(TableVentes[[#This Row],[Code produit]],TableProduits[Code produit],0))","v":"Produit A"},786.05,79]
[18,"2016-02-01",2,{"$f":"INDEX(TableVendeurs[Nom],MATCH(TableVentes[[#This Row],[No Vendeur]],TableVendeurs[No],0))","v":"M. Dupuis"},{"$f":"INDEX(TableVendeurs[Région],MATCH(TableVentes[[#This Row],[No Vendeur]],TableVendeurs[No],0))","v":"Région Ouest"},3,{"$f":"INDEX(TableProduits[Description Produit],MATCH(TableVentes[[#This Row],[Code produit]],TableProduits[Code produit],0))","v":"Produit A"},1094.5,110]
[19,"2016-02-01",3,{"$f":"INDEX(TableVendeurs[Nom],MATCH(TableVentes[[#This Row],[No Vendeur]],TableVendeurs[No],0))","v":"M. Desmol"},{"$f":"INDEX(TableVendeurs[Région],MATCH(TableVentes[[#This Row],[No Vendeur]],TableVendeurs[No],0))","v":"Région Centre"},3,{"$f":"INDEX(TableProduits[Description Produit],MATCH(TableVentes[[#This Row],[Code produit]],TableProduits[Code produit],0))","v":"Produit A"},1074.5999999999999,108]
[20,"2016-02-01",4,{"$f":"INDEX(TableVendeurs[Nom],MATCH(TableVentes[[#This Row],[No Vendeur]],TableVendeurs[No],0))","v":"Mme Bourguignon"},{"$f":"INDEX(TableVendeurs[Région],MATCH(TableVentes[[#This Row],[No Vendeur]],TableVendeurs[No],0))","v":"Région Est"},3,{"$f":"INDEX(TableProduits[Description Produit],MATCH(TableVentes[[#This Row],[Code produit]],TableProduits[Code produit],0))","v":"Produit A"},1452.7,146]
[21,"2016-02-01",5,{"$f":"INDEX(TableVendeurs[Nom],MATCH(TableVentes[[#This Row],[No Vendeur]],TableVendeurs[No],0))","v":"Internet"},{"$f":"INDEX(TableVendeurs[Région],MATCH(TableVentes[[#This Row],[No Vendeur]],TableVendeurs[No],0))","v":"France"},3,{"$f":"INDEX(TableProduits[Description Produit],MATCH(TableVentes[[#This Row],[Code produit]],TableProduits[Code produit],0))","v":"Produit A"},597,60]
[27,"2016-03-01",1,{"$f":"INDEX(TableVendeurs[Nom],MATCH(TableVentes[[#This Row],[No Vendeur]],TableVendeurs[No],0))","v":"M. Lebon"},{"$f":"INDEX(TableVendeurs[Région],MATCH(TableVentes[[#This Row],[No Vendeur]],TableVendeurs[No],0))","v":"Région Nord"},2,{"$f":"INDEX(TableProduits[Description Produit],MATCH(TableVentes[[#This Row],[Code produit]],TableProduits[Code produit],0))","v":"Produit C"},3072.3,154]
[28,"2016-03-01",2,{"$f":"INDEX(TableVendeurs[Nom],MATCH(TableVentes[[#This Row],[No Vendeur]],TableVendeurs[No],0))","v":"M. Dupuis"},{"$f":"INDEX(TableVendeurs[Région],MATCH(TableVentes[[#This Row],[No Vendeur]],TableVendeurs[No],0))","v":"Région Ouest"},2,{"$f":"INDEX(TableProduits[Description Produit],MATCH(TableVentes[[#This Row],[Code produit]],TableProduits[Code produit],0))","v":"Produit C"},3970.05,199]
[29,"2016-03-01",3,{"$f":"INDEX(TableVendeurs[Nom],MATCH(TableVentes[[#This Row],[No Vendeur]],TableVendeurs[No],0))","v":"M. Desmol"},{"$f":"INDEX(TableVendeurs[Région],MATCH(TableVentes[[#This Row],[No Vendeur]],TableVendeurs[No],0))","v":"Région Centre"},2,{"$f":"INDEX(TableProduits[Description Produit],MATCH(TableVentes[[#This Row],[Code produit]],TableProduits[Code produit],0))","v":"Produit C"},3870.3,194]
[30,"2016-03-01",4,{"$f":"INDEX(TableVendeurs[Nom],MATCH(TableVentes[[#This Row],[No Vendeur]],TableVendeurs[No],0))","v":"Mme Bourguignon"},{"$f":"INDEX(TableVendeurs[Région],MATCH(TableVentes[[#This Row],[No Vendeur]],TableVendeurs[No],0))","v":"Région Est"},2,{"$f":"INDEX(TableProduits[Description Produit],MATCH(TableVentes[[#This Row],[Code produit]],TableProduits[Code produit],0))","v":"Produit C"},4468.8,224]
[31,"2016-03-01",5,{"$f":"INDEX(TableVendeurs[Nom],MATCH(TableVentes[[#This Row],[No Vendeur]],TableVendeurs[No],0))","v":"Internet"},{"$f":"INDEX(TableVendeurs[Région],MATCH(TableVentes[[#This Row],[No Vendeur]],TableVendeurs[No],0))","v":"France"},2,{"$f":"INDEX(TableProduits[Description Produit],MATCH(TableVentes[[#This Row],[Code produit]],TableProduits[Code produit],0))","v":"Produit C"},1715.7,86]
[32,"2016-03-01",1,{"$f":"INDEX(TableVendeurs[Nom],MATCH(TableVentes[[#This Row],[No Vendeur]],TableVendeurs[No],0))","v":"M. Lebon"},{"$f":"INDEX(TableVendeurs[Région],MATCH(TableVentes[[#This Row],[No Vendeur]],TableVendeurs[No],0))","v":"Région Nord"},3,{"$f":"INDEX(TableProduits[Description Produit],MATCH(TableVentes[[#This Row],[Code produit]],TableProduits[Code produit],0))","v":"Produit A"},616.9,62]
[33,"2016-03-01",2,{"$f":"INDEX(TableVendeurs[Nom],MATCH(TableVentes[[#This Row],[No Vendeur]],TableVendeurs[No],0))","v":"M. Dupuis"},{"$f":"INDEX(TableVendeurs[Région],MATCH(TableVentes[[#This Row],[No Vendeur]],TableVendeurs[No],0))","v":"Région Ouest"},3,{"$f":"INDEX(TableProduits[Description Produit],MATCH(TableVentes[[#This Row],[Code produit]],TableProduits[Code produit],0))","v":"Produit A"},875.6,88]
[34,"2016-03-01",3,{"$f":"INDEX(TableVendeurs[Nom],MATCH(TableVentes[[#This Row],[No Vendeur]],TableVendeurs[No],0))","v":"M. Desmol"},{"$f":"INDEX(TableVendeurs[Région],MATCH(TableVentes[[#This Row],[No Vendeur]],TableVendeurs[No],0))","v":"Région Centre"},3,{"$f":"INDEX(TableProduits[Description Produit],MATCH(TableVentes[[#This Row],[Code produit]],TableProduits[Code produit],0))","v":"Produit A"},796,80]
[35,"2016-03-01",4,{"$f":"INDEX(TableVendeurs[Nom],MATCH(TableVentes[[#This Row],[No Vendeur]],TableVendeurs[No],0))","v":"Mme Bourguignon"},{"$f":"INDEX(TableVendeurs[Région],MATCH(TableVentes[[#This Row],[No Vendeur]],TableVendeurs[No],0))","v":"Région Est"},3,{"$f":"INDEX(TableProduits[Description Produit],MATCH(TableVentes[[#This Row],[Code produit]],TableProduits[Code produit],0))","v":"Produit A"},1014.9,102]
[36,"2016-03-01",5,{"$f":"INDEX(TableVendeurs[Nom],MATCH(TableVentes[[#This Row],[No Vendeur]],TableVendeurs[No],0))","v":"Internet"},{"$f":"INDEX(TableVendeurs[Région],MATCH(TableVentes[[#This Row],[No Vendeur]],TableVendeurs[No],0))","v":"France"},3,{"$f":"INDEX(TableProduits[Description Produit],MATCH(TableVentes[[#This Row],[Code produit]],TableProduits[Code produit],0))","v":"Produit A"},398,40]
[42,"2016-04-01",1,{"$f":"INDEX(TableVendeurs[Nom],MATCH(TableVentes[[#This Row],[No Vendeur]],TableVendeurs[No],0))","v":"M. Lebon"},{"$f":"INDEX(TableVendeurs[Région],MATCH(TableVentes[[#This Row],[No Vendeur]],TableVendeurs[No],0))","v":"Région Nord"},2,{"$f":"INDEX(TableProduits[Description Produit],MATCH(TableVentes[[#This Row],[Code produit]],TableProduits[Code produit],0))","v":"Produit C"},2613.4499999999998,131]
[43,"2016-04-01",2,{"$f":"INDEX(TableVendeurs[Nom],MATCH(TableVentes[[#This Row],[No Vendeur]],TableVendeurs[No],0))","v":"M. Dupuis"},{"$f":"INDEX(TableVendeurs[Région],MATCH(TableVentes[[#This Row],[No Vendeur]],TableVendeurs[No],0))","v":"Région Ouest"},2,{"$f":"INDEX(TableProduits[Description Produit],MATCH(TableVentes[[#This Row],[Code produit]],TableProduits[Code produit],0))","v":"Produit C"},4289.25,215]
[44,"2016-04-01",3,{"$f":"INDEX(TableVendeurs[Nom],MATCH(TableVentes[[#This Row],[No Vendeur]],TableVendeurs[No],0))","v":"M. Desmol"},{"$f":"INDEX(TableVendeurs[Région],MATCH(TableVentes[[#This Row],[No Vendeur]],TableVendeurs[No],0))","v":"Région Centre"},2,{"$f":"INDEX(TableProduits[Description Produit],MATCH(TableVentes[[#This Row],[Code produit]],TableProduits[Code produit],0))","v":"Produit C"},3910.2,196]
[45,"2016-04-01",4,{"$f":"INDEX(TableVendeurs[Nom],MATCH(TableVentes[[#This Row],[No Vendeur]],TableVendeurs[No],0))","v":"Mme Bourguignon"},{"$f":"INDEX(TableVendeurs[Région],MATCH(TableVentes[[#This Row],[No Vendeur]],TableVendeurs[No],0))","v":"Région Est"},2,{"$f":"INDEX(TableProduits[Description Produit],MATCH(TableVentes[[#This Row],[Code produit]],TableProduits[Code produit],0))","v":"Produit C"},4369.05,219]
[46,"2016-04-01",5,{"$f":"INDEX(TableVendeurs[Nom],MATCH(TableVentes[[#This Row],[No Vendeur]],TableVendeurs[No],0))","v":"Internet"},{"$f":"INDEX(TableVendeurs[Région],MATCH(TableVentes[[#This Row],[No Vendeur]],TableVendeurs[No],0))","v":"France"},2,{"$f":"INDEX(TableProduits[Description Produit],MATCH(TableVentes[[#This Row],[Code produit]],TableProduits[Code produit],0))","v":"Produit C"},1755.6,88]
[47,"2016-04-01",1,{"$f":"INDEX(TableVendeurs[Nom],MATCH(TableVentes[[#This Row],[No Vendeur]],TableVendeurs[No],0))","v":"M. Lebon"},{"$f":"INDEX(TableVendeurs[Région],MATCH(TableVentes[[#This Row],[No Vendeur]],TableVendeurs[No],0))","v":"Région Nord"},3,{"$f":"INDEX(TableProduits[Description Produit],MATCH(TableVentes[[#This Row],[Code produit]],TableProduits[Code produit],0))","v":"Produit A"},517.4,52]
[48,"2016-04-01",2,{"$f":"INDEX(TableVendeurs[Nom],MATCH(TableVentes[[#This Row],[No Vendeur]],TableVendeurs[No],0))","v":"M. Dupuis"},{"$f":"INDEX(TableVendeurs[Région],MATCH(TableVentes[[#This Row],[No Vendeur]],TableVendeurs[No],0))","v":"Région Ouest"},3,{"$f":"INDEX(TableProduits[Description Produit],MATCH(TableVentes[[#This Row],[Code produit]],TableProduits[Code produit],0))","v":"Produit A"},815.9,82]
[49,"2016-04-01",3,{"$f":"INDEX(TableVendeurs[Nom],MATCH(TableVentes[[#This Row],[No Vendeur]],TableVendeurs[No],0))","v":"M. Desmol"},{"$f":"INDEX(TableVendeurs[Région],MATCH(TableVentes[[#This Row],[No Vendeur]],TableVendeurs[No],0))","v":"Région Centre"},3,{"$f":"INDEX(TableProduits[Description Produit],MATCH(TableVentes[[#This Row],[Code produit]],TableProduits[Code produit],0))","v":"Produit A"},776.1,78]
[50,"2016-04-01",4,{"$f":"INDEX(TableVendeurs[Nom],MATCH(TableVentes[[#This Row],[No Vendeur]],TableVendeurs[No],0))","v":"Mme Bourguignon"},{"$f":"INDEX(TableVendeurs[Région],MATCH(TableVentes[[#This Row],[No Vendeur]],TableVendeurs[No],0))","v":"Région Est"},3,{"$f":"INDEX(TableProduits[Description Produit],MATCH(TableVentes[[#This Row],[Code produit]],TableProduits[Code produit],0))","v":"Produit A"},955.2,96]
[51,"2016-04-01",5,{"$f":"INDEX(TableVendeurs[Nom],MATCH(TableVentes[[#This Row],[No Vendeur]],TableVendeurs[No],0))","v":"Internet"},{"$f":"INDEX(TableVendeurs[Région],MATCH(TableVentes[[#This Row],[No Vendeur]],TableVendeurs[No],0))","v":"France"},3,{"$f":"INDEX(TableProduits[Description Produit],MATCH(TableVentes[[#This Row],[Code produit]],TableProduits[Code produit],0))","v":"Produit A"},328.35,33]
[52,"2016-04-01",1,{"$f":"INDEX(TableVendeurs[Nom],MATCH(TableVentes[[#This Row],[No Vendeur]],TableVendeurs[No],0))","v":"M. Lebon"},{"$f":"INDEX(TableVendeurs[Région],MATCH(TableVentes[[#This Row],[No Vendeur]],TableVendeurs[No],0))","v":"Région Nord"},1,{"$f":"INDEX(TableProduits[Description Produit],MATCH(TableVentes[[#This Row],[Code produit]],TableProduits[Code produit],0))","v":"Produit B"},79.8,4]
[53,"2016-04-01",2,{"$f":"INDEX(TableVendeurs[Nom],MATCH(TableVentes[[#This Row],[No Vendeur]],TableVendeurs[No],0))","v":"M. Dupuis"},{"$f":"INDEX(TableVendeurs[Région],MATCH(TableVentes[[#This Row],[No Vendeur]],TableVendeurs[No],0))","v":"Région Ouest"},1,{"$f":"INDEX(TableProduits[Description Produit],MATCH(TableVentes[[#This Row],[Code produit]],TableProduits[Code produit],0))","v":"Produit B"},99.75,5]
[54,"2016-04-01",3,{"$f":"INDEX(TableVendeurs[Nom],MATCH(TableVentes[[#This Row],[No Vendeur]],TableVendeurs[No],0))","v":"M. Desmol"},{"$f":"INDEX(TableVendeurs[Région],MATCH(TableVentes[[#This Row],[No Vendeur]],TableVendeurs[No],0))","v":"Région Centre"},1,{"$f":"INDEX(TableProduits[Description Produit],MATCH(TableVentes[[#This Row],[Code produit]],TableProduits[Code produit],0))","v":"Produit B"},119.7,6]
[55,"2016-04-01",4,{"$f":"INDEX(TableVendeurs[Nom],MATCH(TableVentes[[#This Row],[No Vendeur]],TableVendeurs[No],0))","v":"Mme Bourguignon"},{"$f":"INDEX(TableVendeurs[Région],MATCH(TableVentes[[#This Row],[No Vendeur]],TableVendeurs[No],0))","v":"Région Est"},1,{"$f":"INDEX(TableProduits[Description Produit],MATCH(TableVentes[[#This Row],[Code produit]],TableProduits[Code produit],0))","v":"Produit B"},159.6,8]
[56,"2016-04-01",5,{"$f":"INDEX(TableVendeurs[Nom],MATCH(TableVentes[[#This Row],[No Vendeur]],TableVendeurs[No],0))","v":"Internet"},{"$f":"INDEX(TableVendeurs[Région],MATCH(TableVentes[[#This Row],[No Vendeur]],TableVendeurs[No],0))","v":"France"},1,{"$f":"INDEX(TableProduits[Description Produit],MATCH(TableVentes[[#This Row],[Code produit]],TableProduits[Code produit],0))","v":"Produit B"},59.85,3]
[57,"2016-05-01",1,{"$f":"INDEX(TableVendeurs[Nom],MATCH(TableVentes[[#This Row],[No Vendeur]],TableVendeurs[No],0))","v":"M. Lebon"},{"$f":"INDEX(TableVendeurs[Région],MATCH(TableVentes[[#This Row],[No Vendeur]],TableVendeurs[No],0))","v":"Région Nord"},2,{"$f":"INDEX(TableProduits[Description Produit],MATCH(TableVentes[[#This Row],[Code produit]],TableProduits[Code produit],0))","v":"Produit C"},3511.2,176]
[58,"2016-05-01",2,{"$f":"INDEX(TableVendeurs[Nom],MATCH(TableVentes[[#This Row],[No Vendeur]],TableVendeurs[No],0))","v":"M. Dupuis"},{"$f":"INDEX(TableVendeurs[Région],MATCH(TableVentes[[#This Row],[No Vendeur]],TableVendeurs[No],0))","v":"Région Ouest"},2,{"$f":"INDEX(TableProduits[Description Produit],MATCH(TableVentes[[#This Row],[Code produit]],TableProduits[Code produit],0))","v":"Produit C"},5306.7,266]
[59,"2016-05-01",3,{"$f":"INDEX(TableVendeurs[Nom],MATCH(TableVentes[[#This Row],[No Vendeur]],TableVendeurs[No],0))","v":"M. Desmol"},{"$f":"INDEX(TableVendeurs[Région],MATCH(TableVentes[[#This Row],[No Vendeur]],TableVendeurs[No],0))","v":"Région Centre"},2,{"$f":"INDEX(TableProduits[Description Produit],MATCH(TableVentes[[#This Row],[Code produit]],TableProduits[Code produit],0))","v":"Produit C"},5107.2,256]
[60,"2016-05-01",4,{"$f":"INDEX(TableVendeurs[Nom],MATCH(TableVentes[[#This Row],[No Vendeur]],TableVendeurs[No],0))","v":"Mme Bourguignon"},{"$f":"INDEX(TableVendeurs[Région],MATCH(TableVentes[[#This Row],[No Vendeur]],TableVendeurs[No],0))","v":"Région Est"},2,{"$f":"INDEX(TableProduits[Description Produit],MATCH(TableVentes[[#This Row],[Code produit]],TableProduits[Code produit],0))","v":"Produit C"},5905.2,296]
[61,"2016-05-01",5,{"$f":"INDEX(TableVendeurs[Nom],MATCH(TableVentes[[#This Row],[No Vendeur]],TableVendeurs[No],0))","v":"Internet"},{"$f":"INDEX(TableVendeurs[Région],MATCH(TableVentes[[#This Row],[No Vendeur]],TableVendeurs[No],0))","v":"France"},2,{"$f":"INDEX(TableProduits[Description Produit],MATCH(TableVentes[[#This Row],[Code produit]],TableProduits[Code produit],0))","v":"Produit C"},2573.5500000000002,129]
[62,"2016-05-01",1,{"$f":"INDEX(TableVendeurs[Nom],MATCH(TableVentes[[#This Row],[No Vendeur]],TableVendeurs[No],0))","v":"M. Lebon"},{"$f":"INDEX(TableVendeurs[Région],MATCH(TableVentes[[#This Row],[No Vendeur]],TableVendeurs[No],0))","v":"Région Nord"},3,{"$f":"INDEX(TableProduits[Description Produit],MATCH(TableVentes[[#This Row],[Code produit]],TableProduits[Code produit],0))","v":"Produit A"},756.2,76]
[63,"2016-05-01",2,{"$f":"INDEX(TableVendeurs[Nom],MATCH(TableVentes[[#This Row],[No Vendeur]],TableVendeurs[No],0))","v":"M. Dupuis"},{"$f":"INDEX(TableVendeurs[Région],MATCH(TableVentes[[#This Row],[No Vendeur]],TableVendeurs[No],0))","v":"Région Ouest"},3,{"$f":"INDEX(TableProduits[Description Produit],MATCH(TableVentes[[#This Row],[Code produit]],TableProduits[Code produit],0))","v":"Produit A"},985.05,99]
[64,"2016-05-01",3,{"$f":"INDEX(TableVendeurs[Nom],MATCH(TableVentes[[#This Row],[No Vendeur]],TableVendeurs[No],0))","v":"M. Desmol"},{"$f":"INDEX(TableVendeurs[Région],MATCH(TableVentes[[#This Row],[No Vendeur]],TableVendeurs[No],0))","v":"Région Centre"},3,{"$f":"INDEX(TableProduits[Description Produit],MATCH(TableVentes[[#This Row],[Code produit]],TableProduits[Code produit],0))","v":"Produit A"},1034.8,104]
[65,"2016-05-01",4,{"$f":"INDEX(TableVendeurs[Nom],MATCH(TableVentes[[#This Row],[No Vendeur]],TableVendeurs[No],0))","v":"Mme Bourguignon"},{"$f":"INDEX(TableVendeurs[Région],MATCH(TableVentes[[#This Row],[No Vendeur]],TableVendeurs[No],0))","v":"Région Est"},3,{"$f":"INDEX(TableProduits[Description Produit],MATCH(TableVentes[[#This Row],[Code produit]],TableProduits[Code produit],0))","v":"Produit A"},1253.7,126]
[66,"2016-05-01",5,{"$f":"INDEX(TableVendeurs[Nom],MATCH(TableVentes[[#This Row],[No Vendeur]],TableVendeurs[No],0))","v":"Internet"},{"$f":"INDEX(TableVendeurs[Région],MATCH(TableVentes[[#This Row],[No Vendeur]],TableVendeurs[No],0))","v":"France"},3,{"$f":"INDEX(TableProduits[Description Produit],MATCH(TableVentes[[#This Row],[Code produit]],TableProduits[Code produit],0))","v":"Produit A"},527.35,53]
[67,"2016-05-01",1,{"$f":"INDEX(TableVendeurs[Nom],MATCH(TableVentes[[#This Row],[No Vendeur]],TableVendeurs[No],0))","v":"M. Lebon"},{"$f":"INDEX(TableVendeurs[Région],MATCH(TableVentes[[#This Row],[No Vendeur]],TableVendeurs[No],0))","v":"Région Nord"},1,{"$f":"INDEX(TableProduits[Description Produit],MATCH(TableVentes[[#This Row],[Code produit]],TableProduits[Code produit],0))","v":"Produit B"},99.75,5]
[68,"2016-05-01",2,{"$f":"INDEX(TableVendeurs[Nom],MATCH(TableVentes[[#This Row],[No Vendeur]],TableVendeurs[No],0))","v":"M. Dupuis"},{"$f":"INDEX(TableVendeurs[Région],MATCH(TableVentes[[#This Row],[No Vendeur]],TableVendeurs[No],0))","v":"Région Ouest"},1,{"$f":"INDEX(TableProduits[Description Produit],MATCH(TableVentes[[#This Row],[Code produit]],TableProduits[Code produit],0))","v":"Produit B"},139.65,7]
[69,"2016-05-01",3,{"$f":"INDEX(TableVendeurs[Nom],MATCH(TableVentes[[#This Row],[No Vendeur]],TableVendeurs[No],0))","v":"M. Desmol"},{"$f":"INDEX(TableVendeurs[Région],MATCH(TableVentes[[#This Row],[No Vendeur]],TableVendeurs[No],0))","v":"Région Centre"},1,{"$f":"INDEX(TableProduits[Description Produit],MATCH(TableVentes[[#This Row],[Code produit]],TableProduits[Code produit],0))","v":"Produit B"},119.7,6]
[70,"2016-05-01",4,{"$f":"INDEX(TableVendeurs[Nom],MATCH(TableVentes[[#This Row],[No Vendeur]],TableVendeurs[No],0))","v":"Mme Bourguignon"},{"$f":"INDEX(TableVendeurs[Région],MATCH(TableVentes[[#This Row],[No Vendeur]],TableVendeurs[No],0))","v":"Région Est"},1,{"$f":"INDEX(TableProduits[Description Produit],MATCH(TableVentes[[#This Row],[Code produit]],TableProduits[Code produit],0))","v":"Produit B"},179.55,9]
[71,"2016-05-01",5,{"$f":"INDEX(TableVendeurs[Nom],MATCH(TableVentes[[#This Row],[No Vendeur]],TableVendeurs[No],0))","v":"Internet"},{"$f":"INDEX(TableVendeurs[Région],MATCH(TableVentes[[#This Row],[No Vendeur]],TableVendeurs[No],0))","v":"France"},1,{"$f":"INDEX(TableProduits[Description Produit],MATCH(TableVentes[[#This Row],[Code produit]],TableProduits[Code produit],0))","v":"Produit B"},59.85,3]
[72,"2016-06-01",1,{"$f":"INDEX(TableVendeurs[Nom],MATCH(TableVentes[[#This Row],[No Vendeur]],TableVendeurs[No],0))","v":"M. Lebon"},{"$f":"INDEX(TableVendeurs[Région],MATCH(TableVentes[[#This Row],[No Vendeur]],TableVendeurs[No],0))","v":"Région Nord"},2,{"$f":"INDEX(TableProduits[Description Produit],MATCH(TableVentes[[#This Row],[Code produit]],TableProduits[Code produit],0))","v":"Produit C"},6743.1,338]
[73,"2016-06-01",2,{"$f":"INDEX(TableVendeurs[Nom],MATCH(TableVentes[[#This Row],[No Vendeur]],TableVendeurs[No],0))","v":"M. Dupuis"},{"$f":"INDEX(TableVendeurs[Région],MATCH(TableVentes[[#This Row],[No Vendeur]],TableVendeurs[No],0))","v":"Région Ouest"},2,{"$f":"INDEX(TableProduits[Description Produit],MATCH(TableVentes[[#This Row],[Code produit]],TableProduits[Code produit],0))","v":"Produit C"},10234.35,513]
[74,"2016-06-01",3,{"$f":"INDEX(TableVendeurs[Nom],MATCH(TableVentes[[#This Row],[No Vendeur]],TableVendeurs[No],0))","v":"M. Desmol"},{"$f":"INDEX(TableVendeurs[Région],MATCH(TableVentes[[#This Row],[No Vendeur]],TableVendeurs[No],0))","v":"Région Centre"},2,{"$f":"INDEX(TableProduits[Description Produit],MATCH(TableVentes[[#This Row],[Code produit]],TableProduits[Code produit],0))","v":"Produit C"},8698.2000000000007,436]
[75,"2016-06-01",4,{"$f":"INDEX(TableVendeurs[Nom],MATCH(TableVentes[[#This Row],[No Vendeur]],TableVendeurs[No],0))","v":"Mme Bourguignon"},{"$f":"INDEX(TableVendeurs[Région],MATCH(TableVentes[[#This Row],[No Vendeur]],TableVendeurs[No],0))","v":"Région Est"},2,{"$f":"INDEX(TableProduits[Description Produit],MATCH(TableVentes[[#This Row],[Code produit]],TableProduits[Code produit],0))","v":"Produit C"},10194.450000000001,511]
[76,"2016-06-01",5,{"$f":"INDEX(TableVendeurs[Nom],MATCH(TableVentes[[#This Row],[No Vendeur]],TableVendeurs[No],0))","v":"Internet"},{"$f":"INDEX(TableVendeurs[Région],MATCH(TableVentes[[#This Row],[No Vendeur]],TableVendeurs[No],0))","v":"France"},2,{"$f":"INDEX(TableProduits[Description Produit],MATCH(TableVentes[[#This Row],[Code produit]],TableProduits[Code produit],0))","v":"Produit C"},4249.3500000000004,213]
[77,"2016-06-01",1,{"$f":"INDEX(TableVendeurs[Nom],MATCH(TableVentes[[#This Row],[No Vendeur]],TableVendeurs[No],0))","v":"M. Lebon"},{"$f":"INDEX(TableVendeurs[Région],MATCH(TableVentes[[#This Row],[No Vendeur]],TableVendeurs[No],0))","v":"Région Nord"},3,{"$f":"INDEX(TableProduits[Description Produit],MATCH(TableVentes[[#This Row],[Code produit]],TableProduits[Code produit],0))","v":"Produit A"},1323.35,133]
[78,"2016-06-01",2,{"$f":"INDEX(TableVendeurs[Nom],MATCH(TableVentes[[#This Row],[No Vendeur]],TableVendeurs[No],0))","v":"M. Dupuis"},{"$f":"INDEX(TableVendeurs[Région],MATCH(TableVentes[[#This Row],[No Vendeur]],TableVendeurs[No],0))","v":"Région Ouest"},3,{"$f":"INDEX(TableProduits[Description Produit],MATCH(TableVentes[[#This Row],[Code produit]],TableProduits[Code produit],0))","v":"Produit A"},1681.55,169]
[79,"2016-06-01",3,{"$f":"INDEX(TableVendeurs[Nom],MATCH(TableVentes[[#This Row],[No Vendeur]],TableVendeurs[No],0))","v":"M. Desmol"},{"$f":"INDEX(TableVendeurs[Région],MATCH(TableVentes[[#This Row],[No Vendeur]],TableVendeurs[No],0))","v":"Région Centre"},3,{"$f":"INDEX(TableProduits[Description Produit],MATCH(TableVentes[[#This Row],[Code produit]],TableProduits[Code produit],0))","v":"Produit A"},1482.55,149]
[80,"2016-06-01",4,{"$f":"INDEX(TableVendeurs[Nom],MATCH(TableVentes[[#This Row],[No Vendeur]],TableVendeurs[No],0))","v":"Mme Bourguignon"},{"$f":"INDEX(TableVendeurs[Région],MATCH(TableVentes[[#This Row],[No Vendeur]],TableVendeurs[No],0))","v":"Région Est"},3,{"$f":"INDEX(TableProduits[Description Produit],MATCH(TableVentes[[#This Row],[Code produit]],TableProduits[Code produit],0))","v":"Produit A"},2109.4,212]
[81,"2016-06-01",5,{"$f":"INDEX(TableVendeurs[Nom],MATCH(TableVentes[[#This Row],[No Vendeur]],TableVendeurs[No],0))","v":"Internet"},{"$f":"INDEX(TableVendeurs[Région],MATCH(TableVentes[[#This Row],[No Vendeur]],TableVendeurs[No],0))","v":"France"},3,{"$f":"INDEX(TableProduits[Description Produit],MATCH(TableVentes[[#This Row],[Code produit]],TableProduits[Code produit],0))","v":"Produit A"},716.4,72]
[82,"2016-06-01",1,{"$f":"INDEX(TableVendeurs[Nom],MATCH(TableVentes[[#This Row],[No Vendeur]],TableVendeurs[No],0))","v":"M. Lebon"},{"$f":"INDEX(TableVendeurs[Région],MATCH(TableVentes[[#This Row],[No Vendeur]],TableVendeurs[No],0))","v":"Région Nord"},1,{"$f":"INDEX(TableProduits[Description Produit],MATCH(TableVentes[[#This Row],[Code produit]],TableProduits[Code produit],0))","v":"Produit B"},179.55,9]
[83,"2016-06-01",2,{"$f":"INDEX(TableVendeurs[Nom],MATCH(TableVentes[[#This Row],[No Vendeur]],TableVendeurs[No],0))","v":"M. Dupuis"},{"$f":"INDEX(TableVendeurs[Région],MATCH(TableVentes[[#This Row],[No Vendeur]],TableVendeurs[No],0))","v":"Région Ouest"},1,{"$f":"INDEX(TableProduits[Description Produit],MATCH(TableVentes[[#This Row],[Code produit]],TableProduits[Code produit],0))","v":"Produit B"},239.4,12]
[84,"2016-06-01",3,{"$f":"INDEX(TableVendeurs[Nom],MATCH(TableVentes[[#This Row],[No Vendeur]],TableVendeurs[No],0))","v":"M. Desmol"},{"$f":"INDEX(TableVendeurs[Région],MATCH(TableVentes[[#This Row],[No Vendeur]],TableVendeurs[No],0))","v":"Région Centre"},1,{"$f":"INDEX(TableProduits[Description Produit],MATCH(TableVentes[[#This Row],[Code produit]],TableProduits[Code produit],0))","v":"Produit B"},239.4,12]
[85,"2016-06-01",4,{"$f":"INDEX(TableVendeurs[Nom],MATCH(TableVentes[[#This Row],[No Vendeur]],TableVendeurs[No],0))","v":"Mme Bourguignon"},{"$f":"INDEX(TableVendeurs[Région],MATCH(TableVentes[[#This Row],[No Vendeur]],TableVendeurs[No],0))","v":"Région Est"},1,{"$f":"INDEX(TableProduits[Description Produit],MATCH(TableVentes[[#This Row],[Code produit]],TableProduits[Code produit],0))","v":"Produit B"},319.2,16]
[86,"2016-06-01",5,{"$f":"INDEX(TableVendeurs[Nom],MATCH(TableVentes[[#This Row],[No Vendeur]],TableVendeurs[No],0))","v":"Internet"},{"$f":"INDEX(TableVendeurs[Région],MATCH(TableVentes[[#This Row],[No Vendeur]],TableVendeurs[No],0))","v":"France"},1,{"$f":"INDEX(TableProduits[Description Produit],MATCH(TableVentes[[#This Row],[Code produit]],TableProduits[Code produit],0))","v":"Produit B"},119.7,6]
[87,"2016-07-01",1,{"$f":"INDEX(TableVendeurs[Nom],MATCH(TableVentes[[#This Row],[No Vendeur]],TableVendeurs[No],0))","v":"M. Lebon"},{"$f":"INDEX(TableVendeurs[Région],MATCH(TableVentes[[#This Row],[No Vendeur]],TableVendeurs[No],0))","v":"Région Nord"},2,{"$f":"INDEX(TableProduits[Description Produit],MATCH(TableVentes[[#This Row],[Code produit]],TableProduits[Code produit],0))","v":"Produit C"},7680.75,385]
[88,"2016-07-01",2,{"$f":"INDEX(TableVendeurs[Nom],MATCH(TableVentes[[#This Row],[No Vendeur]],TableVendeurs[No],0))","v":"M. Dupuis"},{"$f":"INDEX(TableVendeurs[Région],MATCH(TableVentes[[#This Row],[No Vendeur]],TableVendeurs[No],0))","v":"Région Ouest"},2,{"$f":"INDEX(TableProduits[Description Produit],MATCH(TableVentes[[#This Row],[Code produit]],TableProduits[Code produit],0))","v":"Produit C"},10693.2,536]
[89,"2016-07-01",3,{"$f":"INDEX(TableVendeurs[Nom],MATCH(TableVentes[[#This Row],[No Vendeur]],TableVendeurs[No],0))","v":"M. Desmol"},{"$f":"INDEX(TableVendeurs[Région],MATCH(TableVentes[[#This Row],[No Vendeur]],TableVendeurs[No],0))","v":"Région Centre"},2,{"$f":"INDEX(TableProduits[Description Produit],MATCH(TableVentes[[#This Row],[Code produit]],TableProduits[Code produit],0))","v":"Produit C"},9296.7000000000007,466]
[90,"2016-07-01",4,{"$f":"INDEX(TableVendeurs[Nom],MATCH(TableVentes[[#This Row],[No Vendeur]],TableVendeurs[No],0))","v":"Mme Bourguignon"},{"$f":"INDEX(TableVendeurs[Région],MATCH(TableVentes[[#This Row],[No Vendeur]],TableVendeurs[No],0))","v":"Région Est"},2,{"$f":"INDEX(TableProduits[Description Produit],MATCH(TableVentes[[#This Row],[Code produit]],TableProduits[Code produit],0))","v":"Produit C"},13286.7,666]
[91,"2016-07-01",5,{"$f":"INDEX(TableVendeurs[Nom],MATCH(TableVentes[[#This Row],[No Vendeur]],TableVendeurs[No],0))","v":"Internet"},{"$f":"INDEX(TableVendeurs[Région],MATCH(TableVentes[[#This Row],[No Vendeur]],TableVendeurs[No],0))","v":"France"},2,{"$f":"INDEX(TableProduits[Description Produit],MATCH(TableVentes[[#This Row],[Code produit]],TableProduits[Code produit],0))","v":"Produit C"},4907.7,246]
[92,"2016-07-01",1,{"$f":"INDEX(TableVendeurs[Nom],MATCH(TableVentes[[#This Row],[No Vendeur]],TableVendeurs[No],0))","v":"M. Lebon"},{"$f":"INDEX(TableVendeurs[Région],MATCH(TableVentes[[#This Row],[No Vendeur]],TableVendeurs[No],0))","v":"Région Nord"},3,{"$f":"INDEX(TableProduits[Description Produit],MATCH(TableVentes[[#This Row],[Code produit]],TableProduits[Code produit],0))","v":"Produit A"},1492.5,150]
[93,"2016-07-01",2,{"$f":"INDEX(TableVendeurs[Nom],MATCH(TableVentes[[#This Row],[No Vendeur]],TableVendeurs[No],0))","v":"M. Dupuis"},{"$f":"INDEX(TableVendeurs[Région],MATCH(TableVentes[[#This Row],[No Vendeur]],TableVendeurs[No],0))","v":"Région Ouest"},3,{"$f":"INDEX(TableProduits[Description Produit],MATCH(TableVentes[[#This Row],[Code produit]],TableProduits[Code produit],0))","v":"Produit A"},1950.2,196]
[94,"2016-07-01",3,{"$f":"INDEX(TableVendeurs[Nom],MATCH(TableVentes[[#This Row],[No Vendeur]],TableVendeurs[No],0))","v":"M. Desmol"},{"$f":"INDEX(TableVendeurs[Région],MATCH(TableVentes[[#This Row],[No Vendeur]],TableVendeurs[No],0))","v":"Région Centre"},3,{"$f":"INDEX(TableProduits[Description Produit],MATCH(TableVentes[[#This Row],[Code produit]],TableProduits[Code produit],0))","v":"Produit A"},1860.65,187]
[95,"2016-07-01",4,{"$f":"INDEX(TableVendeurs[Nom],MATCH(TableVentes[[#This Row],[No Vendeur]],TableVendeurs[No],0))","v":"Mme Bourguignon"},{"$f":"INDEX(TableVendeurs[Région],MATCH(TableVentes[[#This Row],[No Vendeur]],TableVendeurs[No],0))","v":"Région Est"},3,{"$f":"INDEX(TableProduits[Description Produit],MATCH(TableVentes[[#This Row],[Code produit]],TableProduits[Code produit],0))","v":"Produit A"},2208.9,222]
[96,"2016-07-01",5,{"$f":"INDEX(TableVendeurs[Nom],MATCH(TableVentes[[#This Row],[No Vendeur]],TableVendeurs[No],0))","v":"Internet"},{"$f":"INDEX(TableVendeurs[Région],MATCH(TableVentes[[#This Row],[No Vendeur]],TableVendeurs[No],0))","v":"France"},3,{"$f":"INDEX(TableProduits[Description Produit],MATCH(TableVentes[[#This Row],[Code produit]],TableProduits[Code produit],0))","v":"Produit A"},975.1,98]
[97,"2016-07-01",1,{"$f":"INDEX(TableVendeurs[Nom],MATCH(TableVentes[[#This Row],[No Vendeur]],TableVendeurs[No],0))","v":"M. Lebon"},{"$f":"INDEX(TableVendeurs[Région],MATCH(TableVentes[[#This Row],[No Vendeur]],TableVendeurs[No],0))","v":"Région Nord"},1,{"$f":"INDEX(TableProduits[Description Produit],MATCH(TableVentes[[#This Row],[Code produit]],TableProduits[Code produit],0))","v":"Produit B"},299.25,15]
[98,"2016-07-01",2,{"$f":"INDEX(TableVendeurs[Nom],MATCH(TableVentes[[#This Row],[No Vendeur]],TableVendeurs[No],0))","v":"M. Dupuis"},{"$f":"INDEX(TableVendeurs[Région],MATCH(TableVentes[[#This Row],[No Vendeur]],TableVendeurs[No],0))","v":"Région Ouest"},1,{"$f":"INDEX(TableProduits[Description Produit],MATCH(TableVentes[[#This Row],[Code produit]],TableProduits[Code produit],0))","v":"Produit B"},339.15,17]
[99,"2016-07-01",3,{"$f":"INDEX(TableVendeurs[Nom],MATCH(TableVentes[[#This Row],[No Vendeur]],TableVendeurs[No],0))","v":"M. Desmol"},{"$f":"INDEX(TableVendeurs[Région],MATCH(TableVentes[[#This Row],[No Vendeur]],TableVendeurs[No],0))","v":"Région Centre"},1,{"$f":"INDEX(TableProduits[Description Produit],MATCH(TableVentes[[#This Row],[Code produit]],TableProduits[Code produit],0))","v":"Produit B"},319.2,16]
[100,"2016-07-01",4,{"$f":"INDEX(TableVendeurs[Nom],MATCH(TableVentes[[#This Row],[No Vendeur]],TableVendeurs[No],0))","v":"Mme Bourguignon"},{"$f":"INDEX(TableVendeurs[Région],MATCH(TableVentes[[#This Row],[No Vendeur]],TableVendeurs[No],0))","v":"Région Est"},1,{"$f":"INDEX(TableProduits[Description Produit],MATCH(TableVentes[[#This Row],[Code produit]],TableProduits[Code produit],0))","v":"Produit B"},478.8,24]
[101,"2016-07-01",5,{"$f":"INDEX(TableVendeurs[Nom],MATCH(TableVentes[[#This Row],[No Vendeur]],TableVendeurs[No],0))","v":"Internet"},{"$f":"INDEX(TableVendeurs[Région],MATCH(TableVentes[[#This Row],[No Vendeur]],TableVendeurs[No],0))","v":"France"},1,{"$f":"INDEX(TableProduits[Description Produit],MATCH(TableVentes[[#This Row],[Code produit]],TableProduits[Code produit],0))","v":"Produit B"},159.6,8]
[102,"2016-08-01",1,{"$f":"INDEX(TableVendeurs[Nom],MATCH(TableVentes[[#This Row],[No Vendeur]],TableVendeurs[No],0))","v":"M. Lebon"},{"$f":"INDEX(TableVendeurs[Région],MATCH(TableVentes[[#This Row],[No Vendeur]],TableVendeurs[No],0))","v":"Région Nord"},2,{"$f":"INDEX(TableProduits[Description Produit],MATCH(TableVentes[[#This Row],[Code produit]],TableProduits[Code produit],0))","v":"Produit C"},9177,460]
[103,"2016-08-01",2,{"$f":"INDEX(TableVendeurs[Nom],MATCH(TableVentes[[#This Row],[No Vendeur]],TableVendeurs[No],0))","v":"M. Dupuis"},{"$f":"INDEX(TableVendeurs[Région],MATCH(TableVentes[[#This Row],[No Vendeur]],TableVendeurs[No],0))","v":"Région Ouest"},2,{"$f":"INDEX(TableProduits[Description Produit],MATCH(TableVentes[[#This Row],[Code produit]],TableProduits[Code produit],0))","v":"Produit C"},13685.7,686]
[104,"2016-08-01",3,{"$f":"INDEX(TableVendeurs[Nom],MATCH(TableVentes[[#This Row],[No Vendeur]],TableVendeurs[No],0))","v":"M. Desmol"},{"$f":"INDEX(TableVendeurs[Région],MATCH(TableVentes[[#This Row],[No Vendeur]],TableVendeurs[No],0))","v":"Région Centre"},2,{"$f":"INDEX(TableProduits[Description Produit],MATCH(TableVentes[[#This Row],[Code produit]],TableProduits[Code produit],0))","v":"Produit C"},13027.35,653]
[105,"2016-08-01",4,{"$f":"INDEX(TableVendeurs[Nom],MATCH(TableVentes[[#This Row],[No Vendeur]],TableVendeurs[No],0))","v":"Mme Bourguignon"},{"$f":"INDEX(TableVendeurs[Région],MATCH(TableVentes[[#This Row],[No Vendeur]],TableVendeurs[No],0))","v":"Région Est"},2,{"$f":"INDEX(TableProduits[Description Produit],MATCH(TableVentes[[#This Row],[Code produit]],TableProduits[Code produit],0))","v":"Produit C"},14782.95,741]
[106,"2016-08-01",5,{"$f":"INDEX(TableVendeurs[Nom],MATCH(TableVentes[[#This Row],[No Vendeur]],TableVendeurs[No],0))","v":"Internet"},{"$f":"INDEX(TableVendeurs[Région],MATCH(TableVentes[[#This Row],[No Vendeur]],TableVendeurs[No],0))","v":"France"},2,{"$f":"INDEX(TableProduits[Description Produit],MATCH(TableVentes[[#This Row],[Code produit]],TableProduits[Code produit],0))","v":"Produit C"},5805.45,291]
[107,"2016-08-01",1,{"$f":"INDEX(TableVendeurs[Nom],MATCH(TableVentes[[#This Row],[No Vendeur]],TableVendeurs[No],0))","v":"M. Lebon"},{"$f":"INDEX(TableVendeurs[Région],MATCH(TableVentes[[#This Row],[No Vendeur]],TableVendeurs[No],0))","v":"Région Nord"},3,{"$f":"INDEX(TableProduits[Description Produit],MATCH(TableVentes[[#This Row],[Code produit]],TableProduits[Code produit],0))","v":"Produit A"},1572.1,158]
[108,"2016-08-01",2,{"$f":"INDEX(TableVendeurs[Nom],MATCH(TableVentes[[#This Row],[No Vendeur]],TableVendeurs[No],0))","v":"M. Dupuis"},{"$f":"INDEX(TableVendeurs[Région],MATCH(TableVentes[[#This Row],[No Vendeur]],TableVendeurs[No],0))","v":"Région Ouest"},3,{"$f":"INDEX(TableProduits[Description Produit],MATCH(TableVentes[[#This Row],[Code produit]],TableProduits[Code produit],0))","v":"Produit A"},2039.75,205]
[109,"2016-08-01",3,{"$f":"INDEX(TableVendeurs[Nom],MATCH(TableVentes[[#This Row],[No Vendeur]],TableVendeurs[No],0))","v":"M. Desmol"},{"$f":"INDEX(TableVendeurs[Région],MATCH(TableVentes[[#This Row],[No Vendeur]],TableVendeurs[No],0))","v":"Région Centre"},3,{"$f":"INDEX(TableProduits[Description Produit],MATCH(TableVentes[[#This Row],[Code produit]],TableProduits[Code produit],0))","v":"Produit A"},1910.4,192]
[110,"2016-08-01",4,{"$f":"INDEX(TableVendeurs[Nom],MATCH(TableVentes[[#This Row],[No Vendeur]],TableVendeurs[No],0))","v":"Mme Bourguignon"},{"$f":"INDEX(TableVendeurs[Région],MATCH(TableVentes[[#This Row],[No Vendeur]],TableVendeurs[No],0))","v":"Région Est"},3,{"$f":"INDEX(TableProduits[Description Produit],MATCH(TableVentes[[#This Row],[Code produit]],TableProduits[Code produit],0))","v":"Produit A"},2198.9499999999998,221]
[111,"2016-08-01",5,{"$f":"INDEX(TableVendeurs[Nom],MATCH(TableVentes[[#This Row],[No Vendeur]],TableVendeurs[No],0))","v":"Internet"},{"$f":"INDEX(TableVendeurs[Région],MATCH(TableVentes[[#This Row],[No Vendeur]],TableVendeurs[No],0))","v":"France"},3,{"$f":"INDEX(TableProduits[Description Produit],MATCH(TableVentes[[#This Row],[Code produit]],TableProduits[Code produit],0))","v":"Produit A"},945.25,95]
[112,"2016-08-01",1,{"$f":"INDEX(TableVendeurs[Nom],MATCH(TableVentes[[#This Row],[No Vendeur]],TableVendeurs[No],0))","v":"M. Lebon"},{"$f":"INDEX(TableVendeurs[Région],MATCH(TableVentes[[#This Row],[No Vendeur]],TableVendeurs[No],0))","v":"Région Nord"},1,{"$f":"INDEX(TableProduits[Description Produit],MATCH(TableVentes[[#This Row],[Code produit]],TableProduits[Code produit],0))","v":"Produit B"},379.05,19]
[113,"2016-08-01",2,{"$f":"INDEX(TableVendeurs[Nom],MATCH(TableVentes[[#This Row],[No Vendeur]],TableVendeurs[No],0))","v":"M. Dupuis"},{"$f":"INDEX(TableVendeurs[Région],MATCH(TableVentes[[#This Row],[No Vendeur]],TableVendeurs[No],0))","v":"Région Ouest"},1,{"$f":"INDEX(TableProduits[Description Produit],MATCH(TableVentes[[#This Row],[Code produit]],TableProduits[Code produit],0))","v":"Produit B"},498.75,25]
[114,"2016-08-01",3,{"$f":"INDEX(TableVendeurs[Nom],MATCH(TableVentes[[#This Row],[No Vendeur]],TableVendeurs[No],0))","v":"M. Desmol"},{"$f":"INDEX(TableVendeurs[Région],MATCH(TableVentes[[#This Row],[No Vendeur]],TableVendeurs[No],0))","v":"Région Centre"},1,{"$f":"INDEX(TableProduits[Description Produit],MATCH(TableVentes[[#This Row],[Code produit]],TableProduits[Code produit],0))","v":"Produit B"},399,20]
[115,"2016-08-01",4,{"$f":"INDEX(TableVendeurs[Nom],MATCH(TableVentes[[#This Row],[No Vendeur]],TableVendeurs[No],0))","v":"Mme Bourguignon"},{"$f":"INDEX(TableVendeurs[Région],MATCH(TableVentes[[#This Row],[No Vendeur]],TableVendeurs[No],0))","v":"Région Est"},1,{"$f":"INDEX(TableProduits[Description Produit],MATCH(TableVentes[[#This Row],[Code produit]],TableProduits[Code produit],0))","v":"Produit B"},578.54999999999995,29]
[116,"2016-08-01",5,{"$f":"INDEX(TableVendeurs[Nom],MATCH(TableVentes[[#This Row],[No Vendeur]],TableVendeurs[No],0))","v":"Internet"},{"$f":"INDEX(TableVendeurs[Région],MATCH(TableVentes[[#This Row],[No Vendeur]],TableVendeurs[No],0))","v":"France"},1,{"$f":"INDEX(TableProduits[Description Produit],MATCH(TableVentes[[#This Row],[Code produit]],TableProduits[Code produit],0))","v":"Produit B"},239.4,12]
[117,"2016-09-01",1,{"$f":"INDEX(TableVendeurs[Nom],MATCH(TableVentes[[#This Row],[No Vendeur]],TableVendeurs[No],0))","v":"M. Lebon"},{"$f":"INDEX(TableVendeurs[Région],MATCH(TableVentes[[#This Row],[No Vendeur]],TableVendeurs[No],0))","v":"Région Nord"},2,{"$f":"INDEX(TableProduits[Description Produit],MATCH(TableVentes[[#This Row],[Code produit]],TableProduits[Code produit],0))","v":"Produit C"},11730.6,588]
[118,"2016-09-01",2,{"$f":"INDEX(TableVendeurs[Nom],MATCH(TableVentes[[#This Row],[No Vendeur]],TableVendeurs[No],0))","v":"M. Dupuis"},{"$f":"INDEX(TableVendeurs[Région],MATCH(TableVentes[[#This Row],[No Vendeur]],TableVendeurs[No],0))","v":"Région Ouest"},2,{"$f":"INDEX(TableProduits[Description Produit],MATCH(TableVentes[[#This Row],[Code produit]],TableProduits[Code produit],0))","v":"Produit C"},17935.05,899]
[119,"2016-09-01",3,{"$f":"INDEX(TableVendeurs[Nom],MATCH(TableVentes[[#This Row],[No Vendeur]],TableVendeurs[No],0))","v":"M. Desmol"},{"$f":"INDEX(TableVendeurs[Région],MATCH(TableVentes[[#This Row],[No Vendeur]],TableVendeurs[No],0))","v":"Région Centre"},2,{"$f":"INDEX(TableProduits[Description Produit],MATCH(TableVentes[[#This Row],[Code produit]],TableProduits[Code produit],0))","v":"Produit C"},14064.75,705]
[120,"2016-09-01",4,{"$f":"INDEX(TableVendeurs[Nom],MATCH(TableVentes[[#This Row],[No Vendeur]],TableVendeurs[No],0))","v":"Mme Bourguignon"},{"$f":"INDEX(TableVendeurs[Région],MATCH(TableVentes[[#This Row],[No Vendeur]],TableVendeurs[No],0))","v":"Région Est"},2,{"$f":"INDEX(TableProduits[Description Produit],MATCH(TableVentes[[#This Row],[Code produit]],TableProduits[Code produit],0))","v":"Produit C"},18274.2,916]
[121,"2016-09-01",5,{"$f":"INDEX(TableVendeurs[Nom],MATCH(TableVentes[[#This Row],[No Vendeur]],TableVendeurs[No],0))","v":"Internet"},{"$f":"INDEX(TableVendeurs[Région],MATCH(TableVentes[[#This Row],[No Vendeur]],TableVendeurs[No],0))","v":"France"},2,{"$f":"INDEX(TableProduits[Description Produit],MATCH(TableVentes[[#This Row],[Code produit]],TableProduits[Code produit],0))","v":"Produit C"},7999.95,401]
[122,"2016-09-01",1,{"$f":"INDEX(TableVendeurs[Nom],MATCH(TableVentes[[#This Row],[No Vendeur]],TableVendeurs[No],0))","v":"M. Lebon"},{"$f":"INDEX(TableVendeurs[Région],MATCH(TableVentes[[#This Row],[No Vendeur]],TableVendeurs[No],0))","v":"Région Nord"},3,{"$f":"INDEX(TableProduits[Description Produit],MATCH(TableVentes[[#This Row],[Code produit]],TableProduits[Code produit],0))","v":"Produit A"},1562.15,157]
[123,"2016-09-01",2,{"$f":"INDEX(TableVendeurs[Nom],MATCH(TableVentes[[#This Row],[No Vendeur]],TableVendeurs[No],0))","v":"M. Dupuis"},{"$f":"INDEX(TableVendeurs[Région],MATCH(TableVentes[[#This Row],[No Vendeur]],TableVendeurs[No],0))","v":"Région Ouest"},3,{"$f":"INDEX(TableProduits[Description Produit],MATCH(TableVentes[[#This Row],[Code produit]],TableProduits[Code produit],0))","v":"Produit A"},2338.25,235]
[124,"2016-09-01",3,{"$f":"INDEX(TableVendeurs[Nom],MATCH(TableVentes[[#This Row],[No Vendeur]],TableVendeurs[No],0))","v":"M. Desmol"},{"$f":"INDEX(TableVendeurs[Région],MATCH(TableVentes[[#This Row],[No Vendeur]],TableVendeurs[No],0))","v":"Région Centre"},3,{"$f":"INDEX(TableProduits[Description Produit],MATCH(TableVentes[[#This Row],[Code produit]],TableProduits[Code produit],0))","v":"Produit A"},2019.85,203]
[125,"2016-09-01",4,{"$f":"INDEX(TableVendeurs[Nom],MATCH(TableVentes[[#This Row],[No Vendeur]],TableVendeurs[No],0))","v":"Mme Bourguignon"},{"$f":"INDEX(TableVendeurs[Région],MATCH(TableVentes[[#This Row],[No Vendeur]],TableVendeurs[No],0))","v":"Région Est"},3,{"$f":"INDEX(TableProduits[Description Produit],MATCH(TableVentes[[#This Row],[Code produit]],TableProduits[Code produit],0))","v":"Produit A"},2875.55,289]
[126,"2016-09-01",5,{"$f":"INDEX(TableVendeurs[Nom],MATCH(TableVentes[[#This Row],[No Vendeur]],TableVendeurs[No],0))","v":"Internet"},{"$f":"INDEX(TableVendeurs[Région],MATCH(TableVentes[[#This Row],[No Vendeur]],TableVendeurs[No],0))","v":"France"},3,{"$f":"INDEX(TableProduits[Description Produit],MATCH(TableVentes[[#This Row],[Code produit]],TableProduits[Code produit],0))","v":"Produit A"},935.3,94]
[127,"2016-09-01",1,{"$f":"INDEX(TableVendeurs[Nom],MATCH(TableVentes[[#This Row],[No Vendeur]],TableVendeurs[No],0))","v":"M. Lebon"},{"$f":"INDEX(TableVendeurs[Région],MATCH(TableVentes[[#This Row],[No Vendeur]],TableVendeurs[No],0))","v":"Région Nord"},1,{"$f":"INDEX(TableProduits[Description Produit],MATCH(TableVentes[[#This Row],[Code produit]],TableProduits[Code produit],0))","v":"Produit B"},438.9,22]
[128,"2016-09-01",2,{"$f":"INDEX(TableVendeurs[Nom],MATCH(TableVentes[[#This Row],[No Vendeur]],TableVendeurs[No],0))","v":"M. Dupuis"},{"$f":"INDEX(TableVendeurs[Région],MATCH(TableVentes[[#This Row],[No Vendeur]],TableVendeurs[No],0))","v":"Région Ouest"},1,{"$f":"INDEX(TableProduits[Description Produit],MATCH(TableVentes[[#This Row],[Code produit]],TableProduits[Code produit],0))","v":"Produit B"},558.6,28]
[129,"2016-09-01",3,{"$f":"INDEX(TableVendeurs[Nom],MATCH(TableVentes[[#This Row],[No Vendeur]],TableVendeurs[No],0))","v":"M. Desmol"},{"$f":"INDEX(TableVendeurs[Région],MATCH(TableVentes[[#This Row],[No Vendeur]],TableVendeurs[No],0))","v":"Région Centre"},1,{"$f":"INDEX(TableProduits[Description Produit],MATCH(TableVentes[[#This Row],[Code produit]],TableProduits[Code produit],0))","v":"Produit B"},518.70000000000005,26]
[130,"2016-09-01",4,{"$f":"INDEX(TableVendeurs[Nom],MATCH(TableVentes[[#This Row],[No Vendeur]],TableVendeurs[No],0))","v":"Mme Bourguignon"},{"$f":"INDEX(TableVendeurs[Région],MATCH(TableVentes[[#This Row],[No Vendeur]],TableVendeurs[No],0))","v":"Région Est"},1,{"$f":"INDEX(TableProduits[Description Produit],MATCH(TableVentes[[#This Row],[Code produit]],TableProduits[Code produit],0))","v":"Produit B"},698.25,35]
[131,"2016-09-01",5,{"$f":"INDEX(TableVendeurs[Nom],MATCH(TableVentes[[#This Row],[No Vendeur]],TableVendeurs[No],0))","v":"Internet"},{"$f":"INDEX(TableVendeurs[Région],MATCH(TableVentes[[#This Row],[No Vendeur]],TableVendeurs[No],0))","v":"France"},1,{"$f":"INDEX(TableProduits[Description Produit],MATCH(TableVentes[[#This Row],[Code produit]],TableProduits[Code produit],0))","v":"Produit B"},259.35000000000002,13]
[132,"2016-10-01",1,{"$f":"INDEX(TableVendeurs[Nom],MATCH(TableVentes[[#This Row],[No Vendeur]],TableVendeurs[No],0))","v":"M. Lebon"},{"$f":"INDEX(TableVendeurs[Région],MATCH(TableVentes[[#This Row],[No Vendeur]],TableVendeurs[No],0))","v":"Région Nord"},2,{"$f":"INDEX(TableProduits[Description Produit],MATCH(TableVentes[[#This Row],[Code produit]],TableProduits[Code produit],0))","v":"Produit C"},16199.4,812]
[133,"2016-10-01",2,{"$f":"INDEX(TableVendeurs[Nom],MATCH(TableVentes[[#This Row],[No Vendeur]],TableVendeurs[No],0))","v":"M. Dupuis"},{"$f":"INDEX(TableVendeurs[Région],MATCH(TableVentes[[#This Row],[No Vendeur]],TableVendeurs[No],0))","v":"Région Ouest"},2,{"$f":"INDEX(TableProduits[Description Produit],MATCH(TableVentes[[#This Row],[Code produit]],TableProduits[Code produit],0))","v":"Produit C"},25156.95,1261]
[134,"2016-10-01",3,{"$f":"INDEX(TableVendeurs[Nom],MATCH(TableVentes[[#This Row],[No Vendeur]],TableVendeurs[No],0))","v":"M. Desmol"},{"$f":"INDEX(TableVendeurs[Région],MATCH(TableVentes[[#This Row],[No Vendeur]],TableVendeurs[No],0))","v":"Région Centre"},2,{"$f":"INDEX(TableProduits[Description Produit],MATCH(TableVentes[[#This Row],[Code produit]],TableProduits[Code produit],0))","v":"Produit C"},20249.25,1015]
[135,"2016-10-01",4,{"$f":"INDEX(TableVendeurs[Nom],MATCH(TableVentes[[#This Row],[No Vendeur]],TableVendeurs[No],0))","v":"Mme Bourguignon"},{"$f":"INDEX(TableVendeurs[Région],MATCH(TableVentes[[#This Row],[No Vendeur]],TableVendeurs[No],0))","v":"Région Est"},2,{"$f":"INDEX(TableProduits[Description Produit],MATCH(TableVentes[[#This Row],[Code produit]],TableProduits[Code produit],0))","v":"Produit C"},27750.45,1391]
[136,"2016-10-01",5,{"$f":"INDEX(TableVendeurs[Nom],MATCH(TableVentes[[#This Row],[No Vendeur]],TableVendeurs[No],0))","v":"Internet"},{"$f":"INDEX(TableVendeurs[Région],MATCH(TableVentes[[#This Row],[No Vendeur]],TableVendeurs[No],0))","v":"France"},2,{"$f":"INDEX(TableProduits[Description Produit],MATCH(TableVentes[[#This Row],[Code produit]],TableProduits[Code produit],0))","v":"Produit C"},10553.55,529]
[137,"2016-10-01",1,{"$f":"INDEX(TableVendeurs[Nom],MATCH(TableVentes[[#This Row],[No Vendeur]],TableVendeurs[No],0))","v":"M. Lebon"},{"$f":"INDEX(TableVendeurs[Région],MATCH(TableVentes[[#This Row],[No Vendeur]],TableVendeurs[No],0))","v":"Région Nord"},3,{"$f":"INDEX(TableProduits[Description Produit],MATCH(TableVentes[[#This Row],[Code produit]],TableProduits[Code produit],0))","v":"Produit A"},2278.5500000000002,229]
[138,"2016-10-01",2,{"$f":"INDEX(TableVendeurs[Nom],MATCH(TableVentes[[#This Row],[No Vendeur]],TableVendeurs[No],0))","v":"M. Dupuis"},{"$f":"INDEX(TableVendeurs[Région],MATCH(TableVentes[[#This Row],[No Vendeur]],TableVendeurs[No],0))","v":"Région Ouest"},3,{"$f":"INDEX(TableProduits[Description Produit],MATCH(TableVentes[[#This Row],[Code produit]],TableProduits[Code produit],0))","v":"Produit A"},3422.8,344]
[139,"2016-10-01",3,{"$f":"INDEX(TableVendeurs[Nom],MATCH(TableVentes[[#This Row],[No Vendeur]],TableVendeurs[No],0))","v":"M. Desmol"},{"$f":"INDEX(TableVendeurs[Région],MATCH(TableVentes[[#This Row],[No Vendeur]],TableVendeurs[No],0))","v":"Région Centre"},3,{"$f":"INDEX(TableProduits[Description Produit],MATCH(TableVentes[[#This Row],[Code produit]],TableProduits[Code produit],0))","v":"Produit A"},2646.7,266]
[140,"2016-10-01",4,{"$f":"INDEX(TableVendeurs[Nom],MATCH(TableVentes[[#This Row],[No Vendeur]],TableVendeurs[No],0))","v":"Mme Bourguignon"},{"$f":"INDEX(TableVendeurs[Région],MATCH(TableVentes[[#This Row],[No Vendeur]],TableVendeurs[No],0))","v":"Région Est"},3,{"$f":"INDEX(TableProduits[Description Produit],MATCH(TableVentes[[#This Row],[Code produit]],TableProduits[Code produit],0))","v":"Produit A"},4039.7,406]
[141,"2016-10-01",5,{"$f":"INDEX(TableVendeurs[Nom],MATCH(TableVentes[[#This Row],[No Vendeur]],TableVendeurs[No],0))","v":"Internet"},{"$f":"INDEX(TableVendeurs[Région],MATCH(TableVentes[[#This Row],[No Vendeur]],TableVendeurs[No],0))","v":"France"},3,{"$f":"INDEX(TableProduits[Description Produit],MATCH(TableVentes[[#This Row],[Code produit]],TableProduits[Code produit],0))","v":"Produit A"},1562.15,157]
[142,"2016-10-01",1,{"$f":"INDEX(TableVendeurs[Nom],MATCH(TableVentes[[#This Row],[No Vendeur]],TableVendeurs[No],0))","v":"M. Lebon"},{"$f":"INDEX(TableVendeurs[Région],MATCH(TableVentes[[#This Row],[No Vendeur]],TableVendeurs[No],0))","v":"Région Nord"},1,{"$f":"INDEX(TableProduits[Description Produit],MATCH(TableVentes[[#This Row],[Code produit]],TableProduits[Code produit],0))","v":"Produit B"},578.54999999999995,29]
[143,"2016-10-01",2,{"$f":"INDEX(TableVendeurs[Nom],MATCH(TableVentes[[#This Row],[No Vendeur]],TableVendeurs[No],0))","v":"M. Dupuis"},{"$f":"INDEX(TableVendeurs[Région],MATCH(TableVentes[[#This Row],[No Vendeur]],TableVendeurs[No],0))","v":"Région Ouest"},1,{"$f":"INDEX(TableProduits[Description Produit],MATCH(TableVentes[[#This Row],[Code produit]],TableProduits[Code produit],0))","v":"Produit B"},817.95,41]
[144,"2016-10-01",3,{"$f":"INDEX(TableVendeurs[Nom],MATCH(TableVentes[[#This Row],[No Vendeur]],TableVendeurs[No],0))","v":"M. Desmol"},{"$f":"INDEX(TableVendeurs[Région],MATCH(TableVentes[[#This Row],[No Vendeur]],TableVendeurs[No],0))","v":"Région Centre"},1,{"$f":"INDEX(TableProduits[Description Produit],MATCH(TableVentes[[#This Row],[Code produit]],TableProduits[Code produit],0))","v":"Produit B"},738.15,37]
[145,"2016-10-01",4,{"$f":"INDEX(TableVendeurs[Nom],MATCH(TableVentes[[#This Row],[No Vendeur]],TableVendeurs[No],0))","v":"Mme Bourguignon"},{"$f":"INDEX(TableVendeurs[Région],MATCH(TableVentes[[#This Row],[No Vendeur]],TableVendeurs[No],0))","v":"Région Est"},1,{"$f":"INDEX(TableProduits[Description Produit],MATCH(TableVentes[[#This Row],[Code produit]],TableProduits[Code produit],0))","v":"Produit B"},1037.4000000000001,52]
[146,"2016-10-01",5,{"$f":"INDEX(TableVendeurs[Nom],MATCH(TableVentes[[#This Row],[No Vendeur]],TableVendeurs[No],0))","v":"Internet"},{"$f":"INDEX(TableVendeurs[Région],MATCH(TableVentes[[#This Row],[No Vendeur]],TableVendeurs[No],0))","v":"France"},1,{"$f":"INDEX(TableProduits[Description Produit],MATCH(TableVentes[[#This Row],[Code produit]],TableProduits[Code produit],0))","v":"Produit B"},339.15,17]
[147,"2016-11-01",1,{"$f":"INDEX(TableVendeurs[Nom],MATCH(TableVentes[[#This Row],[No Vendeur]],TableVendeurs[No],0))","v":"M. Lebon"},{"$f":"INDEX(TableVendeurs[Région],MATCH(TableVentes[[#This Row],[No Vendeur]],TableVendeurs[No],0))","v":"Région Nord"},2,{"$f":"INDEX(TableProduits[Description Produit],MATCH(TableVentes[[#This Row],[Code produit]],TableProduits[Code produit],0))","v":"Produit C"},16438.8,824]
[148,"2016-11-01",2,{"$f":"INDEX(TableVendeurs[Nom],MATCH(TableVentes[[#This Row],[No Vendeur]],TableVendeurs[No],0))","v":"M. Dupuis"},{"$f":"INDEX(TableVendeurs[Région],MATCH(TableVentes[[#This Row],[No Vendeur]],TableVendeurs[No],0))","v":"Région Ouest"},2,{"$f":"INDEX(TableProduits[Description Produit],MATCH(TableVentes[[#This Row],[Code produit]],TableProduits[Code produit],0))","v":"Produit C"},21107.1,1058]
[149,"2016-11-01",3,{"$f":"INDEX(TableVendeurs[Nom],MATCH(TableVentes[[#This Row],[No Vendeur]],TableVendeurs[No],0))","v":"M. Desmol"},{"$f":"INDEX(TableVendeurs[Région],MATCH(TableVentes[[#This Row],[No Vendeur]],TableVendeurs[No],0))","v":"Région Centre"},2,{"$f":"INDEX(TableProduits[Description Produit],MATCH(TableVentes[[#This Row],[Code produit]],TableProduits[Code produit],0))","v":"Produit C"},20548.5,1030]
[150,"2016-11-01",4,{"$f":"INDEX(TableVendeurs[Nom],MATCH(TableVentes[[#This Row],[No Vendeur]],TableVendeurs[No],0))","v":"Mme Bourguignon"},{"$f":"INDEX(TableVendeurs[Région],MATCH(TableVentes[[#This Row],[No Vendeur]],TableVendeurs[No],0))","v":"Région Est"},2,{"$f":"INDEX(TableProduits[Description Produit],MATCH(TableVentes[[#This Row],[Code produit]],TableProduits[Code produit],0))","v":"Produit C"},22922.55,1149]
[151,"2016-11-01",5,{"$f":"INDEX(TableVendeurs[Nom],MATCH(TableVentes[[#This Row],[No Vendeur]],TableVendeurs[No],0))","v":"Internet"},{"$f":"INDEX(TableVendeurs[Région],MATCH(TableVentes[[#This Row],[No Vendeur]],TableVendeurs[No],0))","v":"France"},2,{"$f":"INDEX(TableProduits[Description Produit],MATCH(TableVentes[[#This Row],[Code produit]],TableProduits[Code produit],0))","v":"Produit C"},8817.9,442]
[152,"2016-11-01",1,{"$f":"INDEX(TableVendeurs[Nom],MATCH(TableVentes[[#This Row],[No Vendeur]],TableVendeurs[No],0))","v":"M. Lebon"},{"$f":"INDEX(TableVendeurs[Région],MATCH(TableVentes[[#This Row],[No Vendeur]],TableVendeurs[No],0))","v":"Région Nord"},3,{"$f":"INDEX(TableProduits[Description Produit],MATCH(TableVentes[[#This Row],[Code produit]],TableProduits[Code produit],0))","v":"Produit A"},2427.8000000000002,244]
[153,"2016-11-01",2,{"$f":"INDEX(TableVendeurs[Nom],MATCH(TableVentes[[#This Row],[No Vendeur]],TableVendeurs[No],0))","v":"M. Dupuis"},{"$f":"INDEX(TableVendeurs[Région],MATCH(TableVentes[[#This Row],[No Vendeur]],TableVendeurs[No],0))","v":"Région Ouest"},3,{"$f":"INDEX(TableProduits[Description Produit],MATCH(TableVentes[[#This Row],[Code produit]],TableProduits[Code produit],0))","v":"Produit A"},3363.1,338]
[154,"2016-11-01",3,{"$f":"INDEX(TableVendeurs[Nom],MATCH(TableVentes[[#This Row],[No Vendeur]],TableVendeurs[No],0))","v":"M. Desmol"},{"$f":"INDEX(TableVendeurs[Région],MATCH(TableVentes[[#This Row],[No Vendeur]],TableVendeurs[No],0))","v":"Région Centre"},3,{"$f":"INDEX(TableProduits[Description Produit],MATCH(TableVentes[[#This Row],[Code produit]],TableProduits[Code produit],0))","v":"Produit A"},2577.0500000000002,259]
[155,"2016-11-01",4,{"$f":"INDEX(TableVendeurs[Nom],MATCH(TableVentes[[#This Row],[No Vendeur]],TableVendeurs[No],0))","v":"Mme Bourguignon"},{"$f":"INDEX(TableVendeurs[Région],MATCH(TableVentes[[#This Row],[No Vendeur]],TableVendeurs[No],0))","v":"Région Est"},3,{"$f":"INDEX(TableProduits[Description Produit],MATCH(TableVentes[[#This Row],[Code produit]],TableProduits[Code produit],0))","v":"Produit A"},3790.95,381]
[156,"2016-11-01",5,{"$f":"INDEX(TableVendeurs[Nom],MATCH(TableVentes[[#This Row],[No Vendeur]],TableVendeurs[No],0))","v":"Internet"},{"$f":"INDEX(TableVendeurs[Région],MATCH(TableVentes[[#This Row],[No Vendeur]],TableVendeurs[No],0))","v":"France"},3,{"$f":"INDEX(TableProduits[Description Produit],MATCH(TableVentes[[#This Row],[Code produit]],TableProduits[Code produit],0))","v":"Produit A"},1512.4,152]
[157,"2016-11-01",1,{"$f":"INDEX(TableVendeurs[Nom],MATCH(TableVentes[[#This Row],[No Vendeur]],TableVendeurs[No],0))","v":"M. Lebon"},{"$f":"INDEX(TableVendeurs[Région],MATCH(TableVentes[[#This Row],[No Vendeur]],TableVendeurs[No],0))","v":"Région Nord"},1,{"$f":"INDEX(TableProduits[Description Produit],MATCH(TableVentes[[#This Row],[Code produit]],TableProduits[Code produit],0))","v":"Produit B"},658.35,33]
[158,"2016-11-01",2,{"$f":"INDEX(TableVendeurs[Nom],MATCH(TableVentes[[#This Row],[No Vendeur]],TableVendeurs[No],0))","v":"M. Dupuis"},{"$f":"INDEX(TableVendeurs[Région],MATCH(TableVentes[[#This Row],[No Vendeur]],TableVendeurs[No],0))","v":"Région Ouest"},1,{"$f":"INDEX(TableProduits[Description Produit],MATCH(TableVentes[[#This Row],[Code produit]],TableProduits[Code produit],0))","v":"Produit B"},997.5,50]
[159,"2016-11-01",3,{"$f":"INDEX(TableVendeurs[Nom],MATCH(TableVentes[[#This Row],[No Vendeur]],TableVendeurs[No],0))","v":"M. Desmol"},{"$f":"INDEX(TableVendeurs[Région],MATCH(TableVentes[[#This Row],[No Vendeur]],TableVendeurs[No],0))","v":"Région Centre"},1,{"$f":"INDEX(TableProduits[Description Produit],MATCH(TableVentes[[#This Row],[Code produit]],TableProduits[Code produit],0))","v":"Produit B"},877.8,44]
[160,"2016-11-01",4,{"$f":"INDEX(TableVendeurs[Nom],MATCH(TableVentes[[#This Row],[No Vendeur]],TableVendeurs[No],0))","v":"Mme Bourguignon"},{"$f":"INDEX(TableVendeurs[Région],MATCH(TableVentes[[#This Row],[No Vendeur]],TableVendeurs[No],0))","v":"Région Est"},1,{"$f":"INDEX(TableProduits[Description Produit],MATCH(TableVentes[[#This Row],[Code produit]],TableProduits[Code produit],0))","v":"Produit B"},1077.3,54]
[161,"2016-11-01",5,{"$f":"INDEX(TableVendeurs[Nom],MATCH(TableVentes[[#This Row],[No Vendeur]],TableVendeurs[No],0))","v":"Internet"},{"$f":"INDEX(TableVendeurs[Région],MATCH(TableVentes[[#This Row],[No Vendeur]],TableVendeurs[No],0))","v":"France"},1,{"$f":"INDEX(TableProduits[Description Produit],MATCH(TableVentes[[#This Row],[Code produit]],TableProduits[Code produit],0))","v":"Produit B"},458.85,23]
[162,"2016-12-01",1,{"$f":"INDEX(TableVendeurs[Nom],MATCH(TableVentes[[#This Row],[No Vendeur]],TableVendeurs[No],0))","v":"M. Lebon"},{"$f":"INDEX(TableVendeurs[Région],MATCH(TableVentes[[#This Row],[No Vendeur]],TableVendeurs[No],0))","v":"Région Nord"},2,{"$f":"INDEX(TableProduits[Description Produit],MATCH(TableVentes[[#This Row],[Code produit]],TableProduits[Code produit],0))","v":"Produit C"},13266.75,665]
[163,"2016-12-01",2,{"$f":"INDEX(TableVendeurs[Nom],MATCH(TableVentes[[#This Row],[No Vendeur]],TableVendeurs[No],0))","v":"M. Dupuis"},{"$f":"INDEX(TableVendeurs[Région],MATCH(TableVentes[[#This Row],[No Vendeur]],TableVendeurs[No],0))","v":"Région Ouest"},2,{"$f":"INDEX(TableProduits[Description Produit],MATCH(TableVentes[[#This Row],[Code produit]],TableProduits[Code produit],0))","v":"Produit C"},17316.599999999999,868]
[164,"2016-12-01",3,{"$f":"INDEX(TableVendeurs[Nom],MATCH(TableVentes[[#This Row],[No Vendeur]],TableVendeurs[No],0))","v":"M. Desmol"},{"$f":"INDEX(TableVendeurs[Région],MATCH(TableVentes[[#This Row],[No Vendeur]],TableVendeurs[No],0))","v":"Région Centre"},2,{"$f":"INDEX(TableProduits[Description Produit],MATCH(TableVentes[[#This Row],[Code produit]],TableProduits[Code produit],0))","v":"Produit C"},15740.55,789]
[165,"2016-12-01",4,{"$f":"INDEX(TableVendeurs[Nom],MATCH(TableVentes[[#This Row],[No Vendeur]],TableVendeurs[No],0))","v":"Mme Bourguignon"},{"$f":"INDEX(TableVendeurs[Région],MATCH(TableVentes[[#This Row],[No Vendeur]],TableVendeurs[No],0))","v":"Région Est"},2,{"$f":"INDEX(TableProduits[Description Produit],MATCH(TableVentes[[#This Row],[Code produit]],TableProduits[Code produit],0))","v":"Produit C"},22683.15,1137]
[166,"2016-12-01",5,{"$f":"INDEX(TableVendeurs[Nom],MATCH(TableVentes[[#This Row],[No Vendeur]],TableVendeurs[No],0))","v":"Internet"},{"$f":"INDEX(TableVendeurs[Région],MATCH(TableVentes[[#This Row],[No Vendeur]],TableVendeurs[No],0))","v":"France"},2,{"$f":"INDEX(TableProduits[Description Produit],MATCH(TableVentes[[#This Row],[Code produit]],TableProduits[Code produit],0))","v":"Produit C"},8797.9500000000007,441]
[167,"2016-12-01",1,{"$f":"INDEX(TableVendeurs[Nom],MATCH(TableVentes[[#This Row],[No Vendeur]],TableVendeurs[No],0))","v":"M. Lebon"},{"$f":"INDEX(TableVendeurs[Région],MATCH(TableVentes[[#This Row],[No Vendeur]],TableVendeurs[No],0))","v":"Région Nord"},3,{"$f":"INDEX(TableProduits[Description Produit],MATCH(TableVentes[[#This Row],[Code produit]],TableProduits[Code produit],0))","v":"Produit A"},2049.6999999999998,206]
[168,"2016-12-01",2,{"$f":"INDEX(TableVendeurs[Nom],MATCH(TableVentes[[#This Row],[No Vendeur]],TableVendeurs[No],0))","v":"M. Dupuis"},{"$f":"INDEX(TableVendeurs[Région],MATCH(TableVentes[[#This Row],[No Vendeur]],TableVendeurs[No],0))","v":"Région Ouest"},3,{"$f":"INDEX(TableProduits[Description Produit],MATCH(TableVentes[[#This Row],[Code produit]],TableProduits[Code produit],0))","v":"Produit A"},2686.5,270]
[169,"2016-12-01",3,{"$f":"INDEX(TableVendeurs[Nom],MATCH(TableVentes[[#This Row],[No Vendeur]],TableVendeurs[No],0))","v":"M. Desmol"},{"$f":"INDEX(TableVendeurs[Région],MATCH(TableVentes[[#This Row],[No Vendeur]],TableVendeurs[No],0))","v":"Région Centre"},3,{"$f":"INDEX(TableProduits[Description Produit],MATCH(TableVentes[[#This Row],[Code produit]],TableProduits[Code produit],0))","v":"Produit A"},2716.35,273]
[170,"2016-12-01",4,{"$f":"INDEX(TableVendeurs[Nom],MATCH(TableVentes[[#This Row],[No Vendeur]],TableVendeurs[No],0))","v":"Mme Bourguignon"},{"$f":"INDEX(TableVendeurs[Région],MATCH(TableVentes[[#This Row],[No Vendeur]],TableVendeurs[No],0))","v":"Région Est"},3,{"$f":"INDEX(TableProduits[Description Produit],MATCH(TableVentes[[#This Row],[Code produit]],TableProduits[Code produit],0))","v":"Produit A"},3402.9,342]
[171,"2016-12-01",5,{"$f":"INDEX(TableVendeurs[Nom],MATCH(TableVentes[[#This Row],[No Vendeur]],TableVendeurs[No],0))","v":"Internet"},{"$f":"INDEX(TableVendeurs[Région],MATCH(TableVentes[[#This Row],[No Vendeur]],TableVendeurs[No],0))","v":"France"},3,{"$f":"INDEX(TableProduits[Description Produit],MATCH(TableVentes[[#This Row],[Code produit]],TableProduits[Code produit],0))","v":"Produit A"},1293.5,130]
[172,"2016-12-01",1,{"$f":"INDEX(TableVendeurs[Nom],MATCH(TableVentes[[#This Row],[No Vendeur]],TableVendeurs[No],0))","v":"M. Lebon"},{"$f":"INDEX(TableVendeurs[Région],MATCH(TableVentes[[#This Row],[No Vendeur]],TableVendeurs[No],0))","v":"Région Nord"},1,{"$f":"INDEX(TableProduits[Description Produit],MATCH(TableVentes[[#This Row],[Code produit]],TableProduits[Code produit],0))","v":"Produit B"},718.2,36]
[173,"2016-12-01",2,{"$f":"INDEX(TableVendeurs[Nom],MATCH(TableVentes[[#This Row],[No Vendeur]],TableVendeurs[No],0))","v":"M. Dupuis"},{"$f":"INDEX(TableVendeurs[Région],MATCH(TableVentes[[#This Row],[No Vendeur]],TableVendeurs[No],0))","v":"Région Ouest"},1,{"$f":"INDEX(TableProduits[Description Produit],MATCH(TableVentes[[#This Row],[Code produit]],TableProduits[Code produit],0))","v":"Produit B"},1017.45,51]
[174,"2016-12-01",3,{"$f":"INDEX(TableVendeurs[Nom],MATCH(TableVentes[[#This Row],[No Vendeur]],TableVendeurs[No],0))","v":"M. Desmol"},{"$f":"INDEX(TableVendeurs[Région],MATCH(TableVentes[[#This Row],[No Vendeur]],TableVendeurs[No],0))","v":"Région Centre"},1,{"$f":"INDEX(TableProduits[Description Produit],MATCH(TableVentes[[#This Row],[Code produit]],TableProduits[Code produit],0))","v":"Produit B"},837.9,42]
[175,"2016-12-01",4,{"$f":"INDEX(TableVendeurs[Nom],MATCH(TableVentes[[#This Row],[No Vendeur]],TableVendeurs[No],0))","v":"Mme Bourguignon"},{"$f":"INDEX(TableVendeurs[Région],MATCH(TableVentes[[#This Row],[No Vendeur]],TableVendeurs[No],0))","v":"Région Est"},1,{"$f":"INDEX(TableProduits[Description Produit],MATCH(TableVentes[[#This Row],[Code produit]],TableProduits[Code produit],0))","v":"Produit B"},1236.9000000000001,62]
[176,"2016-12-01",5,{"$f":"INDEX(TableVendeurs[Nom],MATCH(TableVentes[[#This Row],[No Vendeur]],TableVendeurs[No],0))","v":"Internet"},{"$f":"INDEX(TableVendeurs[Région],MATCH(TableVentes[[#This Row],[No Vendeur]],TableVendeurs[No],0))","v":"France"},1,{"$f":"INDEX(TableProduits[Description Produit],MATCH(TableVentes[[#This Row],[Code produit]],TableProduits[Code produit],0))","v":"Produit B"},438.9,22]
[177,"2017-01-01",1,{"$f":"INDEX(TableVendeurs[Nom],MATCH(TableVentes[[#This Row],[No Vendeur]],TableVendeurs[No],0))","v":"M. Lebon"},{"$f":"INDEX(TableVendeurs[Région],MATCH(TableVentes[[#This Row],[No Vendeur]],TableVendeurs[No],0))","v":"Région Nord"},2,{"$f":"INDEX(TableProduits[Description Produit],MATCH(TableVentes[[#This Row],[Code produit]],TableProduits[Code produit],0))","v":"Produit C"},9097.2000000000007,456]
[178,"2017-01-01",2,{"$f":"INDEX(TableVendeurs[Nom],MATCH(TableVentes[[#This Row],[No Vendeur]],TableVendeurs[No],0))","v":"M. Dupuis"},{"$f":"INDEX(TableVendeurs[Région],MATCH(TableVentes[[#This Row],[No Vendeur]],TableVendeurs[No],0))","v":"Région Ouest"},2,{"$f":"INDEX(TableProduits[Description Produit],MATCH(TableVentes[[#This Row],[Code produit]],TableProduits[Code produit],0))","v":"Produit C"},13286.7,666]
[179,"2017-01-01",3,{"$f":"INDEX(TableVendeurs[Nom],MATCH(TableVentes[[#This Row],[No Vendeur]],TableVendeurs[No],0))","v":"M. Desmol"},{"$f":"INDEX(TableVendeurs[Région],MATCH(TableVentes[[#This Row],[No Vendeur]],TableVendeurs[No],0))","v":"Région Centre"},2,{"$f":"INDEX(TableProduits[Description Produit],MATCH(TableVentes[[#This Row],[Code produit]],TableProduits[Code produit],0))","v":"Produit C"},10773,540]
[180,"2017-01-01",4,{"$f":"INDEX(TableVendeurs[Nom],MATCH(TableVentes[[#This Row],[No Vendeur]],TableVendeurs[No],0))","v":"Mme Bourguignon"},{"$f":"INDEX(TableVendeurs[Région],MATCH(TableVentes[[#This Row],[No Vendeur]],TableVendeurs[No],0))","v":"Région Est"},2,{"$f":"INDEX(TableProduits[Description Produit],MATCH(TableVentes[[#This Row],[Code produit]],TableProduits[Code produit],0))","v":"Produit C"},13705.65,687]
[181,"2017-01-01",5,{"$f":"INDEX(TableVendeurs[Nom],MATCH(TableVentes[[#This Row],[No Vendeur]],TableVendeurs[No],0))","v":"Internet"},{"$f":"INDEX(TableVendeurs[Région],MATCH(TableVentes[[#This Row],[No Vendeur]],TableVendeurs[No],0))","v":"France"},2,{"$f":"INDEX(TableProduits[Description Produit],MATCH(TableVentes[[#This Row],[Code produit]],TableProduits[Code produit],0))","v":"Produit C"},5685.75,285]
[182,"2017-01-01",1,{"$f":"INDEX(TableVendeurs[Nom],MATCH(TableVentes[[#This Row],[No Vendeur]],TableVendeurs[No],0))","v":"M. Lebon"},{"$f":"INDEX(TableVendeurs[Région],MATCH(TableVentes[[#This Row],[No Vendeur]],TableVendeurs[No],0))","v":"Région Nord"},3,{"$f":"INDEX(TableProduits[Description Produit],MATCH(TableVentes[[#This Row],[Code produit]],TableProduits[Code produit],0))","v":"Produit A"},1442.75,145]
[183,"2017-01-01",2,{"$f":"INDEX(TableVendeurs[Nom],MATCH(TableVentes[[#This Row],[No Vendeur]],TableVendeurs[No],0))","v":"M. Dupuis"},{"$f":"INDEX(TableVendeurs[Région],MATCH(TableVentes[[#This Row],[No Vendeur]],TableVendeurs[No],0))","v":"Région Ouest"},3,{"$f":"INDEX(TableProduits[Description Produit],MATCH(TableVentes[[#This Row],[Code produit]],TableProduits[Code produit],0))","v":"Produit A"},1830.8,184]
[184,"2017-01-01",3,{"$f":"INDEX(TableVendeurs[Nom],MATCH(TableVentes[[#This Row],[No Vendeur]],TableVendeurs[No],0))","v":"M. Desmol"},{"$f":"INDEX(TableVendeurs[Région],MATCH(TableVentes[[#This Row],[No Vendeur]],TableVendeurs[No],0))","v":"Région Centre"},3,{"$f":"INDEX(TableProduits[Description Produit],MATCH(TableVentes[[#This Row],[Code produit]],TableProduits[Code produit],0))","v":"Produit A"},1641.75,165]
[185,"2017-01-01",4,{"$f":"INDEX(TableVendeurs[Nom],MATCH(TableVentes[[#This Row],[No Vendeur]],TableVendeurs[No],0))","v":"Mme Bourguignon"},{"$f":"INDEX(TableVendeurs[Région],MATCH(TableVentes[[#This Row],[No Vendeur]],TableVendeurs[No],0))","v":"Région Est"},3,{"$f":"INDEX(TableProduits[Description Produit],MATCH(TableVentes[[#This Row],[Code produit]],TableProduits[Code produit],0))","v":"Produit A"},2159.15,217]
[186,"2017-01-01",5,{"$f":"INDEX(TableVendeurs[Nom],MATCH(TableVentes[[#This Row],[No Vendeur]],TableVendeurs[No],0))","v":"Internet"},{"$f":"INDEX(TableVendeurs[Région],MATCH(TableVentes[[#This Row],[No Vendeur]],TableVendeurs[No],0))","v":"France"},3,{"$f":"INDEX(TableProduits[Description Produit],MATCH(TableVentes[[#This Row],[Code produit]],TableProduits[Code produit],0))","v":"Produit A"},815.9,82]
[187,"2017-01-01",1,{"$f":"INDEX(TableVendeurs[Nom],MATCH(TableVentes[[#This Row],[No Vendeur]],TableVendeurs[No],0))","v":"M. Lebon"},{"$f":"INDEX(TableVendeurs[Région],MATCH(TableVentes[[#This Row],[No Vendeur]],TableVendeurs[No],0))","v":"Région Nord"},1,{"$f":"INDEX(TableProduits[Description Produit],MATCH(TableVentes[[#This Row],[Code produit]],TableProduits[Code produit],0))","v":"Produit B"},598.5,30]
[188,"2017-01-01",2,{"$f":"INDEX(TableVendeurs[Nom],MATCH(TableVentes[[#This Row],[No Vendeur]],TableVendeurs[No],0))","v":"M. Dupuis"},{"$f":"INDEX(TableVendeurs[Région],MATCH(TableVentes[[#This Row],[No Vendeur]],TableVendeurs[No],0))","v":"Région Ouest"},1,{"$f":"INDEX(TableProduits[Description Produit],MATCH(TableVentes[[#This Row],[Code produit]],TableProduits[Code produit],0))","v":"Produit B"},698.25,35]
[189,"2017-01-01",3,{"$f":"INDEX(TableVendeurs[Nom],MATCH(TableVentes[[#This Row],[No Vendeur]],TableVendeurs[No],0))","v":"M. Desmol"},{"$f":"INDEX(TableVendeurs[Région],MATCH(TableVentes[[#This Row],[No Vendeur]],TableVendeurs[No],0))","v":"Région Centre"},1,{"$f":"INDEX(TableProduits[Description Produit],MATCH(TableVentes[[#This Row],[Code produit]],TableProduits[Code produit],0))","v":"Produit B"},638.4,32]
[190,"2017-01-01",4,{"$f":"INDEX(TableVendeurs[Nom],MATCH(TableVentes[[#This Row],[No Vendeur]],TableVendeurs[No],0))","v":"Mme Bourguignon"},{"$f":"INDEX(TableVendeurs[Région],MATCH(TableVentes[[#This Row],[No Vendeur]],TableVendeurs[No],0))","v":"Région Est"},1,{"$f":"INDEX(TableProduits[Description Produit],MATCH(TableVentes[[#This Row],[Code produit]],TableProduits[Code produit],0))","v":"Produit B"},897.75,45]
[191,"2017-01-01",5,{"$f":"INDEX(TableVendeurs[Nom],MATCH(TableVentes[[#This Row],[No Vendeur]],TableVendeurs[No],0))","v":"Internet"},{"$f":"INDEX(TableVendeurs[Région],MATCH(TableVentes[[#This Row],[No Vendeur]],TableVendeurs[No],0))","v":"France"},1,{"$f":"INDEX(TableProduits[Description Produit],MATCH(TableVentes[[#This Row],[Code produit]],TableProduits[Code produit],0))","v":"Produit B"},339.15,17]
[192,"2017-02-01",1,{"$f":"INDEX(TableVendeurs[Nom],MATCH(TableVentes[[#This Row],[No Vendeur]],TableVendeurs[No],0))","v":"M. Lebon"},{"$f":"INDEX(TableVendeurs[Région],MATCH(TableVentes[[#This Row],[No Vendeur]],TableVendeurs[No],0))","v":"Région Nord"},2,{"$f":"INDEX(TableProduits[Description Produit],MATCH(TableVentes[[#This Row],[Code produit]],TableProduits[Code produit],0))","v":"Produit C"},9436.35,473]
[193,"2017-02-01",2,{"$f":"INDEX(TableVendeurs[Nom],MATCH(TableVentes[[#This Row],[No Vendeur]],TableVendeurs[No],0))","v":"M. Dupuis"},{"$f":"INDEX(TableVendeurs[Région],MATCH(TableVentes[[#This Row],[No Vendeur]],TableVendeurs[No],0))","v":"Région Ouest"},2,{"$f":"INDEX(TableProduits[Description Produit],MATCH(TableVentes[[#This Row],[Code produit]],TableProduits[Code produit],0))","v":"Produit C"},15142.05,759]
[194,"2017-02-01",3,{"$f":"INDEX(TableVendeurs[Nom],MATCH(TableVentes[[#This Row],[No Vendeur]],TableVendeurs[No],0))","v":"M. Desmol"},{"$f":"INDEX(TableVendeurs[Région],MATCH(TableVentes[[#This Row],[No Vendeur]],TableVendeurs[No],0))","v":"Région Centre"},2,{"$f":"INDEX(TableProduits[Description Produit],MATCH(TableVentes[[#This Row],[Code produit]],TableProduits[Code produit],0))","v":"Produit C"},12329.1,618]
[195,"2017-02-01",4,{"$f":"INDEX(TableVendeurs[Nom],MATCH(TableVentes[[#This Row],[No Vendeur]],TableVendeurs[No],0))","v":"Mme Bourguignon"},{"$f":"INDEX(TableVendeurs[Région],MATCH(TableVentes[[#This Row],[No Vendeur]],TableVendeurs[No],0))","v":"Région Est"},2,{"$f":"INDEX(TableProduits[Description Produit],MATCH(TableVentes[[#This Row],[Code produit]],TableProduits[Code produit],0))","v":"Produit C"},16538.55,829]
[196,"2017-02-01",5,{"$f":"INDEX(TableVendeurs[Nom],MATCH(TableVentes[[#This Row],[No Vendeur]],TableVendeurs[No],0))","v":"Internet"},{"$f":"INDEX(TableVendeurs[Région],MATCH(TableVentes[[#This Row],[No Vendeur]],TableVendeurs[No],0))","v":"France"},2,{"$f":"INDEX(TableProduits[Description Produit],MATCH(TableVentes[[#This Row],[Code produit]],TableProduits[Code produit],0))","v":"Produit C"},6483.75,325]
[197,"2017-02-01",1,{"$f":"INDEX(TableVendeurs[Nom],MATCH(TableVentes[[#This Row],[No Vendeur]],TableVendeurs[No],0))","v":"M. Lebon"},{"$f":"INDEX(TableVendeurs[Région],MATCH(TableVentes[[#This Row],[No Vendeur]],TableVendeurs[No],0))","v":"Région Nord"},3,{"$f":"INDEX(TableProduits[Description Produit],MATCH(TableVentes[[#This Row],[Code produit]],TableProduits[Code produit],0))","v":"Produit A"},1442.75,145]
[198,"2017-02-01",2,{"$f":"INDEX(TableVendeurs[Nom],MATCH(TableVentes[[#This Row],[No Vendeur]],TableVendeurs[No],0))","v":"M. Dupuis"},{"$f":"INDEX(TableVendeurs[Région],MATCH(TableVentes[[#This Row],[No Vendeur]],TableVendeurs[No],0))","v":"Région Ouest"},3,{"$f":"INDEX(TableProduits[Description Produit],MATCH(TableVentes[[#This Row],[Code produit]],TableProduits[Code produit],0))","v":"Produit A"},2019.85,203]
[199,"2017-02-01",3,{"$f":"INDEX(TableVendeurs[Nom],MATCH(TableVentes[[#This Row],[No Vendeur]],TableVendeurs[No],0))","v":"M. Desmol"},{"$f":"INDEX(TableVendeurs[Région],MATCH(TableVentes[[#This Row],[No Vendeur]],TableVendeurs[No],0))","v":"Région Centre"},3,{"$f":"INDEX(TableProduits[Description Produit],MATCH(TableVentes[[#This Row],[Code produit]],TableProduits[Code produit],0))","v":"Produit A"},1800.95,181]
[200,"2017-02-01",4,{"$f":"INDEX(TableVendeurs[Nom],MATCH(TableVentes[[#This Row],[No Vendeur]],TableVendeurs[No],0))","v":"Mme Bourguignon"},{"$f":"INDEX(TableVendeurs[Région],MATCH(TableVentes[[#This Row],[No Vendeur]],TableVendeurs[No],0))","v":"Région Est"},3,{"$f":"INDEX(TableProduits[Description Produit],MATCH(TableVentes[[#This Row],[Code produit]],TableProduits[Code produit],0))","v":"Produit A"},2328.3000000000002,234]
[201,"2017-02-01",5,{"$f":"INDEX(TableVendeurs[Nom],MATCH(TableVentes[[#This Row],[No Vendeur]],TableVendeurs[No],0))","v":"Internet"},{"$f":"INDEX(TableVendeurs[Région],MATCH(TableVentes[[#This Row],[No Vendeur]],TableVendeurs[No],0))","v":"France"},3,{"$f":"INDEX(TableProduits[Description Produit],MATCH(TableVentes[[#This Row],[Code produit]],TableProduits[Code produit],0))","v":"Produit A"},835.8,84]
[202,"2017-02-01",1,{"$f":"INDEX(TableVendeurs[Nom],MATCH(TableVentes[[#This Row],[No Vendeur]],TableVendeurs[No],0))","v":"M. Lebon"},{"$f":"INDEX(TableVendeurs[Région],MATCH(TableVentes[[#This Row],[No Vendeur]],TableVendeurs[No],0))","v":"Région Nord"},1,{"$f":"INDEX(TableProduits[Description Produit],MATCH(TableVentes[[#This Row],[Code produit]],TableProduits[Code produit],0))","v":"Produit B"},758.1,38]
[203,"2017-02-01",2,{"$f":"INDEX(TableVendeurs[Nom],MATCH(TableVentes[[#This Row],[No Vendeur]],TableVendeurs[No],0))","v":"M. Dupuis"},{"$f":"INDEX(TableVendeurs[Région],MATCH(TableVentes[[#This Row],[No Vendeur]],TableVendeurs[No],0))","v":"Région Ouest"},1,{"$f":"INDEX(TableProduits[Description Produit],MATCH(TableVentes[[#This Row],[Code produit]],TableProduits[Code produit],0))","v":"Produit B"},977.55,49]
[204,"2017-02-01",3,{"$f":"INDEX(TableVendeurs[Nom],MATCH(TableVentes[[#This Row],[No Vendeur]],TableVendeurs[No],0))","v":"M. Desmol"},{"$f":"INDEX(TableVendeurs[Région],MATCH(TableVentes[[#This Row],[No Vendeur]],TableVendeurs[No],0))","v":"Région Centre"},1,{"$f":"INDEX(TableProduits[Description Produit],MATCH(TableVentes[[#This Row],[Code produit]],TableProduits[Code produit],0))","v":"Produit B"},977.55,49]
[205,"2017-02-01",4,{"$f":"INDEX(TableVendeurs[Nom],MATCH(TableVentes[[#This Row],[No Vendeur]],TableVendeurs[No],0))","v":"Mme Bourguignon"},{"$f":"INDEX(TableVendeurs[Région],MATCH(TableVentes[[#This Row],[No Vendeur]],TableVendeurs[No],0))","v":"Région Est"},1,{"$f":"INDEX(TableProduits[Description Produit],MATCH(TableVentes[[#This Row],[Code produit]],TableProduits[Code produit],0))","v":"Produit B"},1236.9000000000001,62]
[206,"2017-02-01",5,{"$f":"INDEX(TableVendeurs[Nom],MATCH(TableVentes[[#This Row],[No Vendeur]],TableVendeurs[No],0))","v":"Internet"},{"$f":"INDEX(TableVendeurs[Région],MATCH(TableVentes[[#This Row],[No Vendeur]],TableVendeurs[No],0))","v":"France"},1,{"$f":"INDEX(TableProduits[Description Produit],MATCH(TableVentes[[#This Row],[Code produit]],TableProduits[Code produit],0))","v":"Produit B"},518.70000000000005,26]
[207,"2017-03-01",1,{"$f":"INDEX(TableVendeurs[Nom],MATCH(TableVentes[[#This Row],[No Vendeur]],TableVendeurs[No],0))","v":"M. Lebon"},{"$f":"INDEX(TableVendeurs[Région],MATCH(TableVentes[[#This Row],[No Vendeur]],TableVendeurs[No],0))","v":"Région Nord"},2,{"$f":"INDEX(TableProduits[Description Produit],MATCH(TableVentes[[#This Row],[Code produit]],TableProduits[Code produit],0))","v":"Produit C"},8957.5499999999993,449]
[208,"2017-03-01",2,{"$f":"INDEX(TableVendeurs[Nom],MATCH(TableVentes[[#This Row],[No Vendeur]],TableVendeurs[No],0))","v":"M. Dupuis"},{"$f":"INDEX(TableVendeurs[Région],MATCH(TableVentes[[#This Row],[No Vendeur]],TableVendeurs[No],0))","v":"Région Ouest"},2,{"$f":"INDEX(TableProduits[Description Produit],MATCH(TableVentes[[#This Row],[Code produit]],TableProduits[Code produit],0))","v":"Produit C"},11970,600]
[209,"2017-03-01",3,{"$f":"INDEX(TableVendeurs[Nom],MATCH(TableVentes[[#This Row],[No Vendeur]],TableVendeurs[No],0))","v":"M. Desmol"},{"$f":"INDEX(TableVendeurs[Région],MATCH(TableVentes[[#This Row],[No Vendeur]],TableVendeurs[No],0))","v":"Région Centre"},2,{"$f":"INDEX(TableProduits[Description Produit],MATCH(TableVentes[[#This Row],[Code produit]],TableProduits[Code produit],0))","v":"Produit C"},10054.799999999999,504]
[210,"2017-03-01",4,{"$f":"INDEX(TableVendeurs[Nom],MATCH(TableVentes[[#This Row],[No Vendeur]],TableVendeurs[No],0))","v":"Mme Bourguignon"},{"$f":"INDEX(TableVendeurs[Région],MATCH(TableVentes[[#This Row],[No Vendeur]],TableVendeurs[No],0))","v":"Région Est"},2,{"$f":"INDEX(TableProduits[Description Produit],MATCH(TableVentes[[#This Row],[Code produit]],TableProduits[Code produit],0))","v":"Produit C"},14822.85,743]
[211,"2017-03-01",5,{"$f":"INDEX(TableVendeurs[Nom],MATCH(TableVentes[[#This Row],[No Vendeur]],TableVendeurs[No],0))","v":"Internet"},{"$f":"INDEX(TableVendeurs[Région],MATCH(TableVentes[[#This Row],[No Vendeur]],TableVendeurs[No],0))","v":"France"},2,{"$f":"INDEX(TableProduits[Description Produit],MATCH(TableVentes[[#This Row],[Code produit]],TableProduits[Code produit],0))","v":"Produit C"},4807.95,241]
[212,"2017-03-01",1,{"$f":"INDEX(TableVendeurs[Nom],MATCH(TableVentes[[#This Row],[No Vendeur]],TableVendeurs[No],0))","v":"M. Lebon"},{"$f":"INDEX(TableVendeurs[Région],MATCH(TableVentes[[#This Row],[No Vendeur]],TableVendeurs[No],0))","v":"Région Nord"},3,{"$f":"INDEX(TableProduits[Description Produit],MATCH(TableVentes[[#This Row],[Code produit]],TableProduits[Code produit],0))","v":"Produit A"},935.3,94]
[213,"2017-03-01",2,{"$f":"INDEX(TableVendeurs[Nom],MATCH(TableVentes[[#This Row],[No Vendeur]],TableVendeurs[No],0))","v":"M. Dupuis"},{"$f":"INDEX(TableVendeurs[Région],MATCH(TableVentes[[#This Row],[No Vendeur]],TableVendeurs[No],0))","v":"Région Ouest"},3,{"$f":"INDEX(TableProduits[Description Produit],MATCH(TableVentes[[#This Row],[Code produit]],TableProduits[Code produit],0))","v":"Produit A"},1253.7,126]
[214,"2017-03-01",3,{"$f":"INDEX(TableVendeurs[Nom],MATCH(TableVentes[[#This Row],[No Vendeur]],TableVendeurs[No],0))","v":"M. Desmol"},{"$f":"INDEX(TableVendeurs[Région],MATCH(TableVentes[[#This Row],[No Vendeur]],TableVendeurs[No],0))","v":"Région Centre"},3,{"$f":"INDEX(TableProduits[Description Produit],MATCH(TableVentes[[#This Row],[Code produit]],TableProduits[Code produit],0))","v":"Produit A"},1174.0999999999999,118]
[215,"2017-03-01",4,{"$f":"INDEX(TableVendeurs[Nom],MATCH(TableVentes[[#This Row],[No Vendeur]],TableVendeurs[No],0))","v":"Mme Bourguignon"},{"$f":"INDEX(TableVendeurs[Région],MATCH(TableVentes[[#This Row],[No Vendeur]],TableVendeurs[No],0))","v":"Région Est"},3,{"$f":"INDEX(TableProduits[Description Produit],MATCH(TableVentes[[#This Row],[Code produit]],TableProduits[Code produit],0))","v":"Produit A"},1761.15,177]
[216,"2017-03-01",5,{"$f":"INDEX(TableVendeurs[Nom],MATCH(TableVentes[[#This Row],[No Vendeur]],TableVendeurs[No],0))","v":"Internet"},{"$f":"INDEX(TableVendeurs[Région],MATCH(TableVentes[[#This Row],[No Vendeur]],TableVendeurs[No],0))","v":"France"},3,{"$f":"INDEX(TableProduits[Description Produit],MATCH(TableVentes[[#This Row],[Code produit]],TableProduits[Code produit],0))","v":"Produit A"},577.1,58]
[217,"2017-03-01",1,{"$f":"INDEX(TableVendeurs[Nom],MATCH(TableVentes[[#This Row],[No Vendeur]],TableVendeurs[No],0))","v":"M. Lebon"},{"$f":"INDEX(TableVendeurs[Région],MATCH(TableVentes[[#This Row],[No Vendeur]],TableVendeurs[No],0))","v":"Région Nord"},1,{"$f":"INDEX(TableProduits[Description Produit],MATCH(TableVentes[[#This Row],[Code produit]],TableProduits[Code produit],0))","v":"Produit B"},718.2,36]
[218,"2017-03-01",2,{"$f":"INDEX(TableVendeurs[Nom],MATCH(TableVentes[[#This Row],[No Vendeur]],TableVendeurs[No],0))","v":"M. Dupuis"},{"$f":"INDEX(TableVendeurs[Région],MATCH(TableVentes[[#This Row],[No Vendeur]],TableVendeurs[No],0))","v":"Région Ouest"},1,{"$f":"INDEX(TableProduits[Description Produit],MATCH(TableVentes[[#This Row],[Code produit]],TableProduits[Code produit],0))","v":"Produit B"},1077.3,54]
[219,"2017-03-01",3,{"$f":"INDEX(TableVendeurs[Nom],MATCH(TableVentes[[#This Row],[No Vendeur]],TableVendeurs[No],0))","v":"M. Desmol"},{"$f":"INDEX(TableVendeurs[Région],MATCH(TableVentes[[#This Row],[No Vendeur]],TableVendeurs[No],0))","v":"Région Centre"},1,{"$f":"INDEX(TableProduits[Description Produit],MATCH(TableVentes[[#This Row],[Code produit]],TableProduits[Code produit],0))","v":"Produit B"},917.7,46]
[220,"2017-03-01",4,{"$f":"INDEX(TableVendeurs[Nom],MATCH(TableVentes[[#This Row],[No Vendeur]],TableVendeurs[No],0))","v":"Mme Bourguignon"},{"$f":"INDEX(TableVendeurs[Région],MATCH(TableVentes[[#This Row],[No Vendeur]],TableVendeurs[No],0))","v":"Région Est"},1,{"$f":"INDEX(TableProduits[Description Produit],MATCH(TableVentes[[#This Row],[Code produit]],TableProduits[Code produit],0))","v":"Produit B"},1197,60]
[221,"2017-03-01",5,{"$f":"INDEX(TableVendeurs[Nom],MATCH(TableVentes[[#This Row],[No Vendeur]],TableVendeurs[No],0))","v":"Internet"},{"$f":"INDEX(TableVendeurs[Région],MATCH(TableVentes[[#This Row],[No Vendeur]],TableVendeurs[No],0))","v":"France"},1,{"$f":"INDEX(TableProduits[Description Produit],MATCH(TableVentes[[#This Row],[Code produit]],TableProduits[Code produit],0))","v":"Produit B"},458.85,23]
[222,"2017-04-01",1,{"$f":"INDEX(TableVendeurs[Nom],MATCH(TableVentes[[#This Row],[No Vendeur]],TableVendeurs[No],0))","v":"M. Lebon"},{"$f":"INDEX(TableVendeurs[Région],MATCH(TableVentes[[#This Row],[No Vendeur]],TableVendeurs[No],0))","v":"Région Nord"},2,{"$f":"INDEX(TableProduits[Description Produit],MATCH(TableVentes[[#This Row],[Code produit]],TableProduits[Code produit],0))","v":"Produit C"},6822.9,342]
[223,"2017-04-01",2,{"$f":"INDEX(TableVendeurs[Nom],MATCH(TableVentes[[#This Row],[No Vendeur]],TableVendeurs[No],0))","v":"M. Dupuis"},{"$f":"INDEX(TableVendeurs[Région],MATCH(TableVentes[[#This Row],[No Vendeur]],TableVendeurs[No],0))","v":"Région Ouest"},2,{"$f":"INDEX(TableProduits[Description Produit],MATCH(TableVentes[[#This Row],[Code produit]],TableProduits[Code produit],0))","v":"Produit C"},10892.7,546]
[224,"2017-04-01",3,{"$f":"INDEX(TableVendeurs[Nom],MATCH(TableVentes[[#This Row],[No Vendeur]],TableVendeurs[No],0))","v":"M. Desmol"},{"$f":"INDEX(TableVendeurs[Région],MATCH(TableVentes[[#This Row],[No Vendeur]],TableVendeurs[No],0))","v":"Région Centre"},2,{"$f":"INDEX(TableProduits[Description Produit],MATCH(TableVentes[[#This Row],[Code produit]],TableProduits[Code produit],0))","v":"Produit C"},8897.7000000000007,446]
[225,"2017-04-01",4,{"$f":"INDEX(TableVendeurs[Nom],MATCH(TableVentes[[#This Row],[No Vendeur]],TableVendeurs[No],0))","v":"Mme Bourguignon"},{"$f":"INDEX(TableVendeurs[Région],MATCH(TableVentes[[#This Row],[No Vendeur]],TableVendeurs[No],0))","v":"Région Est"},2,{"$f":"INDEX(TableProduits[Description Produit],MATCH(TableVentes[[#This Row],[Code produit]],TableProduits[Code produit],0))","v":"Produit C"},12408.9,622]
[226,"2017-04-01",5,{"$f":"INDEX(TableVendeurs[Nom],MATCH(TableVentes[[#This Row],[No Vendeur]],TableVendeurs[No],0))","v":"Internet"},{"$f":"INDEX(TableVendeurs[Région],MATCH(TableVentes[[#This Row],[No Vendeur]],TableVendeurs[No],0))","v":"France"},2,{"$f":"INDEX(TableProduits[Description Produit],MATCH(TableVentes[[#This Row],[Code produit]],TableProduits[Code produit],0))","v":"Produit C"},4269.3,214]
[227,"2017-04-01",1,{"$f":"INDEX(TableVendeurs[Nom],MATCH(TableVentes[[#This Row],[No Vendeur]],TableVendeurs[No],0))","v":"M. Lebon"},{"$f":"INDEX(TableVendeurs[Région],MATCH(TableVentes[[#This Row],[No Vendeur]],TableVendeurs[No],0))","v":"Région Nord"},3,{"$f":"INDEX(TableProduits[Description Produit],MATCH(TableVentes[[#This Row],[Code produit]],TableProduits[Code produit],0))","v":"Produit A"},905.45,91]
[228,"2017-04-01",2,{"$f":"INDEX(TableVendeurs[Nom],MATCH(TableVentes[[#This Row],[No Vendeur]],TableVendeurs[No],0))","v":"M. Dupuis"},{"$f":"INDEX(TableVendeurs[Région],MATCH(TableVentes[[#This Row],[No Vendeur]],TableVendeurs[No],0))","v":"Région Ouest"},3,{"$f":"INDEX(TableProduits[Description Produit],MATCH(TableVentes[[#This Row],[Code produit]],TableProduits[Code produit],0))","v":"Produit A"},1223.8499999999999,123]
[229,"2017-04-01",3,{"$f":"INDEX(TableVendeurs[Nom],MATCH(TableVentes[[#This Row],[No Vendeur]],TableVendeurs[No],0))","v":"M. Desmol"},{"$f":"INDEX(TableVendeurs[Région],MATCH(TableVentes[[#This Row],[No Vendeur]],TableVendeurs[No],0))","v":"Région Centre"},3,{"$f":"INDEX(TableProduits[Description Produit],MATCH(TableVentes[[#This Row],[Code produit]],TableProduits[Code produit],0))","v":"Produit A"},1074.5999999999999,108]
[230,"2017-04-01",4,{"$f":"INDEX(TableVendeurs[Nom],MATCH(TableVentes[[#This Row],[No Vendeur]],TableVendeurs[No],0))","v":"Mme Bourguignon"},{"$f":"INDEX(TableVendeurs[Région],MATCH(TableVentes[[#This Row],[No Vendeur]],TableVendeurs[No],0))","v":"Région Est"},3,{"$f":"INDEX(TableProduits[Description Produit],MATCH(TableVentes[[#This Row],[Code produit]],TableProduits[Code produit],0))","v":"Produit A"},1532.3,154]
[231,"2017-04-01",5,{"$f":"INDEX(TableVendeurs[Nom],MATCH(TableVentes[[#This Row],[No Vendeur]],TableVendeurs[No],0))","v":"Internet"},{"$f":"INDEX(TableVendeurs[Région],MATCH(TableVentes[[#This Row],[No Vendeur]],TableVendeurs[No],0))","v":"France"},3,{"$f":"INDEX(TableProduits[Description Produit],MATCH(TableVentes[[#This Row],[Code produit]],TableProduits[Code produit],0))","v":"Produit A"},507.45,51]
[232,"2017-04-01",1,{"$f":"INDEX(TableVendeurs[Nom],MATCH(TableVentes[[#This Row],[No Vendeur]],TableVendeurs[No],0))","v":"M. Lebon"},{"$f":"INDEX(TableVendeurs[Région],MATCH(TableVentes[[#This Row],[No Vendeur]],TableVendeurs[No],0))","v":"Région Nord"},1,{"$f":"INDEX(TableProduits[Description Produit],MATCH(TableVentes[[#This Row],[Code produit]],TableProduits[Code produit],0))","v":"Produit B"},658.35,33]
[233,"2017-04-01",2,{"$f":"INDEX(TableVendeurs[Nom],MATCH(TableVentes[[#This Row],[No Vendeur]],TableVendeurs[No],0))","v":"M. Dupuis"},{"$f":"INDEX(TableVendeurs[Région],MATCH(TableVentes[[#This Row],[No Vendeur]],TableVendeurs[No],0))","v":"Région Ouest"},1,{"$f":"INDEX(TableProduits[Description Produit],MATCH(TableVentes[[#This Row],[Code produit]],TableProduits[Code produit],0))","v":"Produit B"},977.55,49]
[234,"2017-04-01",3,{"$f":"INDEX(TableVendeurs[Nom],MATCH(TableVentes[[#This Row],[No Vendeur]],TableVendeurs[No],0))","v":"M. Desmol"},{"$f":"INDEX(TableVendeurs[Région],MATCH(TableVentes[[#This Row],[No Vendeur]],TableVendeurs[No],0))","v":"Région Centre"},1,{"$f":"INDEX(TableProduits[Description Produit],MATCH(TableVentes[[#This Row],[Code produit]],TableProduits[Code produit],0))","v":"Produit B"},877.8,44]
[235,"2017-04-01",4,{"$f":"INDEX(TableVendeurs[Nom],MATCH(TableVentes[[#This Row],[No Vendeur]],TableVendeurs[No],0))","v":"Mme Bourguignon"},{"$f":"INDEX(TableVendeurs[Région],MATCH(TableVentes[[#This Row],[No Vendeur]],TableVendeurs[No],0))","v":"Région Est"},1,{"$f":"INDEX(TableProduits[Description Produit],MATCH(TableVentes[[#This Row],[Code produit]],TableProduits[Code produit],0))","v":"Produit B"},1236.9000000000001,62]
[236,"2017-04-01",5,{"$f":"INDEX(TableVendeurs[Nom],MATCH(TableVentes[[#This Row],[No Vendeur]],TableVendeurs[No],0))","v":"Internet"},{"$f":"INDEX(TableVendeurs[Région],MATCH(TableVentes[[#This Row],[No Vendeur]],TableVendeurs[No],0))","v":"France"},1,{"$f":"INDEX(TableProduits[Description Produit],MATCH(TableVentes[[#This Row],[Code produit]],TableProduits[Code produit],0))","v":"Produit B"},399,20]
[237,"2017-05-01",1,{"$f":"INDEX(TableVendeurs[Nom],MATCH(TableVentes[[#This Row],[No Vendeur]],TableVendeurs[No],0))","v":"M. Lebon"},{"$f":"INDEX(TableVendeurs[Région],MATCH(TableVentes[[#This Row],[No Vendeur]],TableVendeurs[No],0))","v":"Région Nord"},2,{"$f":"INDEX(TableProduits[Description Produit],MATCH(TableVentes[[#This Row],[Code produit]],TableProduits[Code produit],0))","v":"Produit C"},9037.35,453]
[238,"2017-05-01",2,{"$f":"INDEX(TableVendeurs[Nom],MATCH(TableVentes[[#This Row],[No Vendeur]],TableVendeurs[No],0))","v":"M. Dupuis"},{"$f":"INDEX(TableVendeurs[Région],MATCH(TableVentes[[#This Row],[No Vendeur]],TableVendeurs[No],0))","v":"Région Ouest"},2,{"$f":"INDEX(TableProduits[Description Produit],MATCH(TableVentes[[#This Row],[Code produit]],TableProduits[Code produit],0))","v":"Produit C"},13685.7,686]
[239,"2017-05-01",3,{"$f":"INDEX(TableVendeurs[Nom],MATCH(TableVentes[[#This Row],[No Vendeur]],TableVendeurs[No],0))","v":"M. Desmol"},{"$f":"INDEX(TableVendeurs[Région],MATCH(TableVentes[[#This Row],[No Vendeur]],TableVendeurs[No],0))","v":"Région Centre"},2,{"$f":"INDEX(TableProduits[Description Produit],MATCH(TableVentes[[#This Row],[Code produit]],TableProduits[Code produit],0))","v":"Produit C"},12049.8,604]
[240,"2017-05-01",4,{"$f":"INDEX(TableVendeurs[Nom],MATCH(TableVentes[[#This Row],[No Vendeur]],TableVendeurs[No],0))","v":"Mme Bourguignon"},{"$f":"INDEX(TableVendeurs[Région],MATCH(TableVentes[[#This Row],[No Vendeur]],TableVendeurs[No],0))","v":"Région Est"},2,{"$f":"INDEX(TableProduits[Description Produit],MATCH(TableVentes[[#This Row],[Code produit]],TableProduits[Code produit],0))","v":"Produit C"},17137.05,859]
[241,"2017-05-01",5,{"$f":"INDEX(TableVendeurs[Nom],MATCH(TableVentes[[#This Row],[No Vendeur]],TableVendeurs[No],0))","v":"Internet"},{"$f":"INDEX(TableVendeurs[Région],MATCH(TableVentes[[#This Row],[No Vendeur]],TableVendeurs[No],0))","v":"France"},2,{"$f":"INDEX(TableProduits[Description Produit],MATCH(TableVentes[[#This Row],[Code produit]],TableProduits[Code produit],0))","v":"Produit C"},6284.25,315]
[242,"2017-05-01",1,{"$f":"INDEX(TableVendeurs[Nom],MATCH(TableVentes[[#This Row],[No Vendeur]],TableVendeurs[No],0))","v":"M. Lebon"},{"$f":"INDEX(TableVendeurs[Région],MATCH(TableVentes[[#This Row],[No Vendeur]],TableVendeurs[No],0))","v":"Région Nord"},3,{"$f":"INDEX(TableProduits[Description Produit],MATCH(TableVentes[[#This Row],[Code produit]],TableProduits[Code produit],0))","v":"Produit A"},1004.95,101]
[243,"2017-05-01",2,{"$f":"INDEX(TableVendeurs[Nom],MATCH(TableVentes[[#This Row],[No Vendeur]],TableVendeurs[No],0))","v":"M. Dupuis"},{"$f":"INDEX(TableVendeurs[Région],MATCH(TableVentes[[#This Row],[No Vendeur]],TableVendeurs[No],0))","v":"Région Ouest"},3,{"$f":"INDEX(TableProduits[Description Produit],MATCH(TableVentes[[#This Row],[Code produit]],TableProduits[Code produit],0))","v":"Produit A"},1393,140]
[244,"2017-05-01",3,{"$f":"INDEX(TableVendeurs[Nom],MATCH(TableVentes[[#This Row],[No Vendeur]],TableVendeurs[No],0))","v":"M. Desmol"},{"$f":"INDEX(TableVendeurs[Région],MATCH(TableVentes[[#This Row],[No Vendeur]],TableVendeurs[No],0))","v":"Région Centre"},3,{"$f":"INDEX(TableProduits[Description Produit],MATCH(TableVentes[[#This Row],[Code produit]],TableProduits[Code produit],0))","v":"Produit A"},1462.65,147]
[245,"2017-05-01",4,{"$f":"INDEX(TableVendeurs[Nom],MATCH(TableVentes[[#This Row],[No Vendeur]],TableVendeurs[No],0))","v":"Mme Bourguignon"},{"$f":"INDEX(TableVendeurs[Région],MATCH(TableVentes[[#This Row],[No Vendeur]],TableVendeurs[No],0))","v":"Région Est"},3,{"$f":"INDEX(TableProduits[Description Produit],MATCH(TableVentes[[#This Row],[Code produit]],TableProduits[Code produit],0))","v":"Produit A"},1721.35,173]
[246,"2017-05-01",5,{"$f":"INDEX(TableVendeurs[Nom],MATCH(TableVentes[[#This Row],[No Vendeur]],TableVendeurs[No],0))","v":"Internet"},{"$f":"INDEX(TableVendeurs[Région],MATCH(TableVentes[[#This Row],[No Vendeur]],TableVendeurs[No],0))","v":"France"},3,{"$f":"INDEX(TableProduits[Description Produit],MATCH(TableVentes[[#This Row],[Code produit]],TableProduits[Code produit],0))","v":"Produit A"},696.5,70]
[247,"2017-05-01",1,{"$f":"INDEX(TableVendeurs[Nom],MATCH(TableVentes[[#This Row],[No Vendeur]],TableVendeurs[No],0))","v":"M. Lebon"},{"$f":"INDEX(TableVendeurs[Région],MATCH(TableVentes[[#This Row],[No Vendeur]],TableVendeurs[No],0))","v":"Région Nord"},1,{"$f":"INDEX(TableProduits[Description Produit],MATCH(TableVentes[[#This Row],[Code produit]],TableProduits[Code produit],0))","v":"Produit B"},957.6,48]
[248,"2017-05-01",2,{"$f":"INDEX(TableVendeurs[Nom],MATCH(TableVentes[[#This Row],[No Vendeur]],TableVendeurs[No],0))","v":"M. Dupuis"},{"$f":"INDEX(TableVendeurs[Région],MATCH(TableVentes[[#This Row],[No Vendeur]],TableVendeurs[No],0))","v":"Région Ouest"},1,{"$f":"INDEX(TableProduits[Description Produit],MATCH(TableVentes[[#This Row],[Code produit]],TableProduits[Code produit],0))","v":"Produit B"},1396.5,70]
[249,"2017-05-01",3,{"$f":"INDEX(TableVendeurs[Nom],MATCH(TableVentes[[#This Row],[No Vendeur]],TableVendeurs[No],0))","v":"M. Desmol"},{"$f":"INDEX(TableVendeurs[Région],MATCH(TableVentes[[#This Row],[No Vendeur]],TableVendeurs[No],0))","v":"Région Centre"},1,{"$f":"INDEX(TableProduits[Description Produit],MATCH(TableVentes[[#This Row],[Code produit]],TableProduits[Code produit],0))","v":"Produit B"},1336.65,67]
[250,"2017-05-01",4,{"$f":"INDEX(TableVendeurs[Nom],MATCH(TableVentes[[#This Row],[No Vendeur]],TableVendeurs[No],0))","v":"Mme Bourguignon"},{"$f":"INDEX(TableVendeurs[Région],MATCH(TableVentes[[#This Row],[No Vendeur]],TableVendeurs[No],0))","v":"Région Est"},1,{"$f":"INDEX(TableProduits[Description Produit],MATCH(TableVentes[[#This Row],[Code produit]],TableProduits[Code produit],0))","v":"Produit B"},1536.15,77]
[251,"2017-05-01",5,{"$f":"INDEX(TableVendeurs[Nom],MATCH(TableVentes[[#This Row],[No Vendeur]],TableVendeurs[No],0))","v":"Internet"},{"$f":"INDEX(TableVendeurs[Région],MATCH(TableVentes[[#This Row],[No Vendeur]],TableVendeurs[No],0))","v":"France"},1,{"$f":"INDEX(TableProduits[Description Produit],MATCH(TableVentes[[#This Row],[Code produit]],TableProduits[Code produit],0))","v":"Produit B"},698.25,35]
[252,"2017-06-01",1,{"$f":"INDEX(TableVendeurs[Nom],MATCH(TableVentes[[#This Row],[No Vendeur]],TableVendeurs[No],0))","v":"M. Lebon"},{"$f":"INDEX(TableVendeurs[Région],MATCH(TableVentes[[#This Row],[No Vendeur]],TableVendeurs[No],0))","v":"Région Nord"},2,{"$f":"INDEX(TableProduits[Description Produit],MATCH(TableVentes[[#This Row],[Code produit]],TableProduits[Code produit],0))","v":"Produit C"},18254.25,915]
[253,"2017-06-01",2,{"$f":"INDEX(TableVendeurs[Nom],MATCH(TableVentes[[#This Row],[No Vendeur]],TableVendeurs[No],0))","v":"M. Dupuis"},{"$f":"INDEX(TableVendeurs[Région],MATCH(TableVentes[[#This Row],[No Vendeur]],TableVendeurs[No],0))","v":"Région Ouest"},2,{"$f":"INDEX(TableProduits[Description Produit],MATCH(TableVentes[[#This Row],[Code produit]],TableProduits[Code produit],0))","v":"Produit C"},22264.2,1116]
[254,"2017-06-01",3,{"$f":"INDEX(TableVendeurs[Nom],MATCH(TableVentes[[#This Row],[No Vendeur]],TableVendeurs[No],0))","v":"M. Desmol"},{"$f":"INDEX(TableVendeurs[Région],MATCH(TableVentes[[#This Row],[No Vendeur]],TableVendeurs[No],0))","v":"Région Centre"},2,{"$f":"INDEX(TableProduits[Description Produit],MATCH(TableVentes[[#This Row],[Code produit]],TableProduits[Code produit],0))","v":"Produit C"},21326.55,1069]
[255,"2017-06-01",4,{"$f":"INDEX(TableVendeurs[Nom],MATCH(TableVentes[[#This Row],[No Vendeur]],TableVendeurs[No],0))","v":"Mme Bourguignon"},{"$f":"INDEX(TableVendeurs[Région],MATCH(TableVentes[[#This Row],[No Vendeur]],TableVendeurs[No],0))","v":"Région Est"},2,{"$f":"INDEX(TableProduits[Description Produit],MATCH(TableVentes[[#This Row],[Code produit]],TableProduits[Code produit],0))","v":"Produit C"},28289.1,1418]
[256,"2017-06-01",5,{"$f":"INDEX(TableVendeurs[Nom],MATCH(TableVentes[[#This Row],[No Vendeur]],TableVendeurs[No],0))","v":"Internet"},{"$f":"INDEX(TableVendeurs[Région],MATCH(TableVentes[[#This Row],[No Vendeur]],TableVendeurs[No],0))","v":"France"},2,{"$f":"INDEX(TableProduits[Description Produit],MATCH(TableVentes[[#This Row],[Code produit]],TableProduits[Code produit],0))","v":"Produit C"},11850.3,594]
[257,"2017-06-01",1,{"$f":"INDEX(TableVendeurs[Nom],MATCH(TableVentes[[#This Row],[No Vendeur]],TableVendeurs[No],0))","v":"M. Lebon"},{"$f":"INDEX(TableVendeurs[Région],MATCH(TableVentes[[#This Row],[No Vendeur]],TableVendeurs[No],0))","v":"Région Nord"},3,{"$f":"INDEX(TableProduits[Description Produit],MATCH(TableVentes[[#This Row],[Code produit]],TableProduits[Code produit],0))","v":"Produit A"},1701.45,171]
[258,"2017-06-01",2,{"$f":"INDEX(TableVendeurs[Nom],MATCH(TableVentes[[#This Row],[No Vendeur]],TableVendeurs[No],0))","v":"M. Dupuis"},{"$f":"INDEX(TableVendeurs[Région],MATCH(TableVentes[[#This Row],[No Vendeur]],TableVendeurs[No],0))","v":"Région Ouest"},3,{"$f":"INDEX(TableProduits[Description Produit],MATCH(TableVentes[[#This Row],[Code produit]],TableProduits[Code produit],0))","v":"Produit A"},2577.0500000000002,259]
[259,"2017-06-01",3,{"$f":"INDEX(TableVendeurs[Nom],MATCH(TableVentes[[#This Row],[No Vendeur]],TableVendeurs[No],0))","v":"M. Desmol"},{"$f":"INDEX(TableVendeurs[Région],MATCH(TableVentes[[#This Row],[No Vendeur]],TableVendeurs[No],0))","v":"Région Centre"},3,{"$f":"INDEX(TableProduits[Description Produit],MATCH(TableVentes[[#This Row],[Code produit]],TableProduits[Code produit],0))","v":"Produit A"},2129.3000000000002,214]
[260,"2017-06-01",4,{"$f":"INDEX(TableVendeurs[Nom],MATCH(TableVentes[[#This Row],[No Vendeur]],TableVendeurs[No],0))","v":"Mme Bourguignon"},{"$f":"INDEX(TableVendeurs[Région],MATCH(TableVentes[[#This Row],[No Vendeur]],TableVendeurs[No],0))","v":"Région Est"},3,{"$f":"INDEX(TableProduits[Description Produit],MATCH(TableVentes[[#This Row],[Code produit]],TableProduits[Code produit],0))","v":"Produit A"},3054.65,307]
[261,"2017-06-01",5,{"$f":"INDEX(TableVendeurs[Nom],MATCH(TableVentes[[#This Row],[No Vendeur]],TableVendeurs[No],0))","v":"Internet"},{"$f":"INDEX(TableVendeurs[Région],MATCH(TableVentes[[#This Row],[No Vendeur]],TableVendeurs[No],0))","v":"France"},3,{"$f":"INDEX(TableProduits[Description Produit],MATCH(TableVentes[[#This Row],[Code produit]],TableProduits[Code produit],0))","v":"Produit A"},1014.9,102]
[262,"2017-06-01",1,{"$f":"INDEX(TableVendeurs[Nom],MATCH(TableVentes[[#This Row],[No Vendeur]],TableVendeurs[No],0))","v":"M. Lebon"},{"$f":"INDEX(TableVendeurs[Région],MATCH(TableVentes[[#This Row],[No Vendeur]],TableVendeurs[No],0))","v":"Région Nord"},1,{"$f":"INDEX(TableProduits[Description Produit],MATCH(TableVentes[[#This Row],[Code produit]],TableProduits[Code produit],0))","v":"Produit B"},2094.75,105]
[263,"2017-06-01",2,{"$f":"INDEX(TableVendeurs[Nom],MATCH(TableVentes[[#This Row],[No Vendeur]],TableVendeurs[No],0))","v":"M. Dupuis"},{"$f":"INDEX(TableVendeurs[Région],MATCH(TableVentes[[#This Row],[No Vendeur]],TableVendeurs[No],0))","v":"Région Ouest"},1,{"$f":"INDEX(TableProduits[Description Produit],MATCH(TableVentes[[#This Row],[Code produit]],TableProduits[Code produit],0))","v":"Produit B"},2633.4,132]
[264,"2017-06-01",3,{"$f":"INDEX(TableVendeurs[Nom],MATCH(TableVentes[[#This Row],[No Vendeur]],TableVendeurs[No],0))","v":"M. Desmol"},{"$f":"INDEX(TableVendeurs[Région],MATCH(TableVentes[[#This Row],[No Vendeur]],TableVendeurs[No],0))","v":"Région Centre"},1,{"$f":"INDEX(TableProduits[Description Produit],MATCH(TableVentes[[#This Row],[Code produit]],TableProduits[Code produit],0))","v":"Produit B"},2394,120]
[265,"2017-06-01",4,{"$f":"INDEX(TableVendeurs[Nom],MATCH(TableVentes[[#This Row],[No Vendeur]],TableVendeurs[No],0))","v":"Mme Bourguignon"},{"$f":"INDEX(TableVendeurs[Région],MATCH(TableVentes[[#This Row],[No Vendeur]],TableVendeurs[No],0))","v":"Région Est"},1,{"$f":"INDEX(TableProduits[Description Produit],MATCH(TableVentes[[#This Row],[Code produit]],TableProduits[Code produit],0))","v":"Produit B"},3251.85,163]
[266,"2017-06-01",5,{"$f":"INDEX(TableVendeurs[Nom],MATCH(TableVentes[[#This Row],[No Vendeur]],TableVendeurs[No],0))","v":"Internet"},{"$f":"INDEX(TableVendeurs[Région],MATCH(TableVentes[[#This Row],[No Vendeur]],TableVendeurs[No],0))","v":"France"},1,{"$f":"INDEX(TableProduits[Description Produit],MATCH(TableVentes[[#This Row],[Code produit]],TableProduits[Code produit],0))","v":"Produit B"},1197,60]
[267,"2017-07-01",1,{"$f":"INDEX(TableVendeurs[Nom],MATCH(TableVentes[[#This Row],[No Vendeur]],TableVendeurs[No],0))","v":"M. Lebon"},{"$f":"INDEX(TableVendeurs[Région],MATCH(TableVentes[[#This Row],[No Vendeur]],TableVendeurs[No],0))","v":"Région Nord"},2,{"$f":"INDEX(TableProduits[Description Produit],MATCH(TableVentes[[#This Row],[Code produit]],TableProduits[Code produit],0))","v":"Produit C"},20249.25,1015]
[268,"2017-07-01",2,{"$f":"INDEX(TableVendeurs[Nom],MATCH(TableVentes[[#This Row],[No Vendeur]],TableVendeurs[No],0))","v":"M. Dupuis"},{"$f":"INDEX(TableVendeurs[Région],MATCH(TableVentes[[#This Row],[No Vendeur]],TableVendeurs[No],0))","v":"Région Ouest"},2,{"$f":"INDEX(TableProduits[Description Produit],MATCH(TableVentes[[#This Row],[Code produit]],TableProduits[Code produit],0))","v":"Produit C"},32578.35,1633]
[269,"2017-07-01",3,{"$f":"INDEX(TableVendeurs[Nom],MATCH(TableVentes[[#This Row],[No Vendeur]],TableVendeurs[No],0))","v":"M. Desmol"},{"$f":"INDEX(TableVendeurs[Région],MATCH(TableVentes[[#This Row],[No Vendeur]],TableVendeurs[No],0))","v":"Région Centre"},2,{"$f":"INDEX(TableProduits[Description Produit],MATCH(TableVentes[[#This Row],[Code produit]],TableProduits[Code produit],0))","v":"Produit C"},28269.15,1417]
[270,"2017-07-01",4,{"$f":"INDEX(TableVendeurs[Nom],MATCH(TableVentes[[#This Row],[No Vendeur]],TableVendeurs[No],0))","v":"Mme Bourguignon"},{"$f":"INDEX(TableVendeurs[Région],MATCH(TableVentes[[#This Row],[No Vendeur]],TableVendeurs[No],0))","v":"Région Est"},2,{"$f":"INDEX(TableProduits[Description Produit],MATCH(TableVentes[[#This Row],[Code produit]],TableProduits[Code produit],0))","v":"Produit C"},32558.400000000001,1632]
[271,"2017-07-01",5,{"$f":"INDEX(TableVendeurs[Nom],MATCH(TableVentes[[#This Row],[No Vendeur]],TableVendeurs[No],0))","v":"Internet"},{"$f":"INDEX(TableVendeurs[Région],MATCH(TableVentes[[#This Row],[No Vendeur]],TableVendeurs[No],0))","v":"France"},2,{"$f":"INDEX(TableProduits[Description Produit],MATCH(TableVentes[[#This Row],[Code produit]],TableProduits[Code produit],0))","v":"Produit C"},14124.6,708]
[272,"2017-07-01",1,{"$f":"INDEX(TableVendeurs[Nom],MATCH(TableVentes[[#This Row],[No Vendeur]],TableVendeurs[No],0))","v":"M. Lebon"},{"$f":"INDEX(TableVendeurs[Région],MATCH(TableVentes[[#This Row],[No Vendeur]],TableVendeurs[No],0))","v":"Région Nord"},3,{"$f":"INDEX(TableProduits[Description Produit],MATCH(TableVentes[[#This Row],[Code produit]],TableProduits[Code produit],0))","v":"Produit A"},1960.15,197]
[273,"2017-07-01",2,{"$f":"INDEX(TableVendeurs[Nom],MATCH(TableVentes[[#This Row],[No Vendeur]],TableVendeurs[No],0))","v":"M. Dupuis"},{"$f":"INDEX(TableVendeurs[Région],MATCH(TableVentes[[#This Row],[No Vendeur]],TableVendeurs[No],0))","v":"Région Ouest"},3,{"$f":"INDEX(TableProduits[Description Produit],MATCH(TableVentes[[#This Row],[Code produit]],TableProduits[Code produit],0))","v":"Produit A"},2835.75,285]
[274,"2017-07-01",3,{"$f":"INDEX(TableVendeurs[Nom],MATCH(TableVentes[[#This Row],[No Vendeur]],TableVendeurs[No],0))","v":"M. Desmol"},{"$f":"INDEX(TableVendeurs[Région],MATCH(TableVentes[[#This Row],[No Vendeur]],TableVendeurs[No],0))","v":"Région Centre"},3,{"$f":"INDEX(TableProduits[Description Produit],MATCH(TableVentes[[#This Row],[Code produit]],TableProduits[Code produit],0))","v":"Produit A"},2457.65,247]
[275,"2017-07-01",4,{"$f":"INDEX(TableVendeurs[Nom],MATCH(TableVentes[[#This Row],[No Vendeur]],TableVendeurs[No],0))","v":"Mme Bourguignon"},{"$f":"INDEX(TableVendeurs[Région],MATCH(TableVentes[[#This Row],[No Vendeur]],TableVendeurs[No],0))","v":"Région Est"},3,{"$f":"INDEX(TableProduits[Description Produit],MATCH(TableVentes[[#This Row],[Code produit]],TableProduits[Code produit],0))","v":"Produit A"},3383,340]
[276,"2017-07-01",5,{"$f":"INDEX(TableVendeurs[Nom],MATCH(TableVentes[[#This Row],[No Vendeur]],TableVendeurs[No],0))","v":"Internet"},{"$f":"INDEX(TableVendeurs[Région],MATCH(TableVentes[[#This Row],[No Vendeur]],TableVendeurs[No],0))","v":"France"},3,{"$f":"INDEX(TableProduits[Description Produit],MATCH(TableVentes[[#This Row],[Code produit]],TableProduits[Code produit],0))","v":"Produit A"},1213.9000000000001,122]
[277,"2017-07-01",1,{"$f":"INDEX(TableVendeurs[Nom],MATCH(TableVentes[[#This Row],[No Vendeur]],TableVendeurs[No],0))","v":"M. Lebon"},{"$f":"INDEX(TableVendeurs[Région],MATCH(TableVentes[[#This Row],[No Vendeur]],TableVendeurs[No],0))","v":"Région Nord"},1,{"$f":"INDEX(TableProduits[Description Produit],MATCH(TableVentes[[#This Row],[Code produit]],TableProduits[Code produit],0))","v":"Produit B"},2314.1999999999998,116]
[278,"2017-07-01",2,{"$f":"INDEX(TableVendeurs[Nom],MATCH(TableVentes[[#This Row],[No Vendeur]],TableVendeurs[No],0))","v":"M. Dupuis"},{"$f":"INDEX(TableVendeurs[Région],MATCH(TableVentes[[#This Row],[No Vendeur]],TableVendeurs[No],0))","v":"Région Ouest"},1,{"$f":"INDEX(TableProduits[Description Produit],MATCH(TableVentes[[#This Row],[Code produit]],TableProduits[Code produit],0))","v":"Produit B"},3571.05,179]
[279,"2017-07-01",3,{"$f":"INDEX(TableVendeurs[Nom],MATCH(TableVentes[[#This Row],[No Vendeur]],TableVendeurs[No],0))","v":"M. Desmol"},{"$f":"INDEX(TableVendeurs[Région],MATCH(TableVentes[[#This Row],[No Vendeur]],TableVendeurs[No],0))","v":"Région Centre"},1,{"$f":"INDEX(TableProduits[Description Produit],MATCH(TableVentes[[#This Row],[Code produit]],TableProduits[Code produit],0))","v":"Produit B"},3231.9,162]
[280,"2017-07-01",4,{"$f":"INDEX(TableVendeurs[Nom],MATCH(TableVentes[[#This Row],[No Vendeur]],TableVendeurs[No],0))","v":"Mme Bourguignon"},{"$f":"INDEX(TableVendeurs[Région],MATCH(TableVentes[[#This Row],[No Vendeur]],TableVendeurs[No],0))","v":"Région Est"},1,{"$f":"INDEX(TableProduits[Description Produit],MATCH(TableVentes[[#This Row],[Code produit]],TableProduits[Code produit],0))","v":"Produit B"},4608.45,231]
[281,"2017-07-01",5,{"$f":"INDEX(TableVendeurs[Nom],MATCH(TableVentes[[#This Row],[No Vendeur]],TableVendeurs[No],0))","v":"Internet"},{"$f":"INDEX(TableVendeurs[Région],MATCH(TableVentes[[#This Row],[No Vendeur]],TableVendeurs[No],0))","v":"France"},1,{"$f":"INDEX(TableProduits[Description Produit],MATCH(TableVentes[[#This Row],[Code produit]],TableProduits[Code produit],0))","v":"Produit B"},1436.4,72]

{"sheet":"Vendeurs","index":2,"n_rows":6,"n_cols":3,"rows_kept":6,"cut":false,"hidden":false,"merged":[]}
["No","Nom","Région"]
[1,"M. Lebon","Région Nord"]
[2,"M. Dupuis","Région Ouest"]
[3,"M. Desmol","Région Centre"]
[4,"Mme Bourguignon","Région Est"]
[5,"Internet","France"]

{"sheet":"Produits","index":3,"n_rows":4,"n_cols":2,"rows_kept":4,"cut":false,"hidden":false,"merged":[]}
["Code produit","Description Produit"]
[1,"Produit B"]
[2,"Produit C"]
[3,"Produit A"]

{"sheet":"TCD","index":4,"n_rows":20,"n_cols":4,"rows_kept":20,"cut":false,"hidden":false,"merged":[]}
[]
[]
[]
["Nom","M. Desmol"]
[]
["Nom du produit"," Chiffre d'affaires"," Unités vendues"," Prix Unitaire Moyen"]
["Produit A",31591.25,3175,9.9499999999999993]
["Produit B",14543.55,729,19.95]
["Produit C",222681.90000000005,11162,19.950000000000006]
["Total général",268816.70000000007,15066,17.842605867516262]
[]
[]
[]
["Nom","(Tous)"]
[]
["Nom du produit"," Chiffre d'affaires"," Unités vendues"," Prix Unitaire Moyen"]
["Produit A",151259.89999999997,15080,10.030497347480104]
["Produit B",69027.000000000015,3460,19.950000000000003]
["Produit C",1054556.8500000001,52860,19.949997162315551]
["Total général",1274843.75,71400,17.854954481792717]

{"sheet":"Feuil1","index":5,"n_rows":12,"n_cols":7,"rows_kept":12,"cut":false,"hidden":false,"merged":[]}
["No","Nom","CA",null,null,"Nom","Somme de CA"]
[1,"a",15,null,null,"a",15]
[2,"b",null,null,null,"b"]
[3,"c",12,null,null,"c",12]
[null,null,null,null,null,"Total général",27]
[]
[]
[null,null,null,null,null,"Nom","Somme de CA"]
["No","Nom","CA",null,null,"a",15]
[1,"a",15,null,null,"b",18]
[2,"b",18,null,null,"c",12]
[3,"c",12,null,null,"Total général",45]

{"sheet":"Plan","index":6,"n_rows":5,"n_cols":1,"rows_kept":5,"cut":false,"hidden":false,"merged":[]}
[{"$f":"INDEX(A2:A5,Param!B1)","v":"Danger 4. Nombre au lieu de Somme"}]
["Danger 1. Transmettre des informations confidentielles à un tiers"]
["Danger 2. Oubli de l’actualisation des données"]
["Danger 3. Aller trop vite dans l'analyse "]
["Danger 4. Nombre au lieu de Somme"]

{"sheet":"Param","index":7,"n_rows":1,"n_cols":2,"rows_kept":1,"cut":false,"hidden":false,"merged":[]}
["Règle en cours : ",4]